{"text_format":"1","workbook":"xlsx","n_sheets":6,"sheets":["機械装置入力シート（ICT酪農用）","出力シート（ICT 別添6-1）","まとめシート（ICT 別添6）","項目リスト","機械装置リスト","機械装置リスト_隠し"],"not_rendered":{"charts":0,"images":30,"macros":1,"external_links":0,"defined_names":123,"comments":0,"pivot_tables":0},"unopened":[],"bounds":{"document_bytes":16777216,"sheet_cells":100000,"rows_first":2000,"rows_last":500,"rows_between":2000,"halvings":0,"cell_chars":16384,"cell_head_chars":4096},"cells_cut":0,"cells_raw":0,"read":"whole","date_system":"1900"}

{"sheet":"機械装置入力シート（ICT酪農用）","index":0,"n_rows":130,"n_cols":20,"rows_kept":130,"cut":false,"hidden":false,"merged":[[92,18,92,19],[84,18,84,20],[87,18,87,19],[88,18,88,19],[89,18,89,19],[90,18,90,19],[91,18,91,19],[22,2,22,5],[91,2,91,3],[91,4,91,5],[91,11,91,12],[91,13,91,14],[92,2,92,3],[92,4,92,5],[92,11,92,12],[92,13,92,14],[89,2,89,3],[89,4,89,5],[89,11,89,12],[89,13,89,14],[90,2,90,3],[90,4,90,5],[90,11,90,12],[90,13,90,14],[120,4,120,8],[120,10,120,11],[121,4,121,8],[121,10,121,11],[122,4,122,8],[122,10,122,11],[118,2,118,3],[118,4,118,8],[118,10,118,11],[119,2,119,3],[119,4,119,8],[119,10,119,11],[128,2,128,11],[129,2,129,11],[124,4,124,8],[124,10,124,11],[125,2,125,3],[125,4,125,8],[125,10,125,11],[127,8,127,9],[127,10,127,11],[116,4,116,8],[116,10,116,11],[117,2,117,3],[117,4,117,8],[117,10,117,11],[115,2,115,3],[115,4,115,8],[115,10,115,11],[113,2,113,3],[113,4,113,8],[113,10,113,11],[114,2,114,3],[114,4,114,8],[114,10,114,11],[116,2,116,3],[111,2,111,3],[111,4,111,8],[111,10,111,11],[112,2,112,3],[112,4,112,8],[112,10,112,11],[97,7,97,9],[102,10,102,11],[104,5,104,12],[109,10,109,11],[110,2,110,3],[110,4,110,8],[110,10,110,11],[87,2,87,3],[87,4,87,5],[87,11,87,12],[87,13,87,14],[88,2,88,3],[88,4,88,5],[88,11,88,12],[88,13,88,14],[84,2,84,4],[84,5,84,6],[84,11,84,13],[84,14,84,15],[85,6,85,8],[85,15,85,16],[80,2,80,3],[80,4,80,5],[80,6,80,7],[80,8,80,9],[80,11,80,12],[80,13,80,14],[79,2,79,3],[79,4,79,5],[79,6,79,7],[79,8,79,9],[79,11,79,12],[79,13,79,14],[78,2,78,3],[78,4,78,5],[78,6,78,7],[78,8,78,9],[78,11,78,12],[78,13,78,14],[77,2,77,3],[77,4,77,5],[77,6,77,7],[77,8,77,9],[77,11,77,12],[77,13,77,14],[76,2,76,3],[76,4,76,5],[76,6,76,7],[76,8,76,9],[76,11,76,12],[76,13,76,14],[73,6,73,9],[73,15,73,16],[75,2,75,3],[75,4,75,5],[75,6,75,7],[75,8,75,9],[75,11,75,12],[75,13,75,14],[72,2,72,3],[72,4,72,5],[72,6,72,7],[72,8,72,9],[72,11,72,12],[72,13,72,14],[65,15,65,16],[71,2,71,3],[71,4,71,5],[71,6,71,7],[71,8,71,9],[71,11,71,12],[71,13,71,14],[65,2,65,3],[65,4,65,5],[65,6,65,7],[65,8,65,9],[65,10,65,11],[65,13,65,14],[63,15,63,16],[64,2,64,3],[64,4,64,5],[64,6,64,7],[64,8,64,9],[64,10,64,11],[64,13,64,14],[64,15,64,16],[63,2,63,3],[63,4,63,5],[63,6,63,7],[63,8,63,9],[63,10,63,11],[63,13,63,14],[57,10,57,11],[57,13,57,14],[57,15,57,16],[61,15,61,16],[62,2,62,3],[62,4,62,5],[62,6,62,7],[62,8,62,9],[62,10,62,11],[62,13,62,14],[62,15,62,16],[61,2,61,3],[61,4,61,5],[61,6,61,7],[61,8,61,9],[61,10,61,11],[61,13,61,14],[51,15,51,16],[55,4,55,11],[56,2,56,3],[56,4,56,5],[56,6,56,7],[56,8,56,9],[56,10,56,11],[56,13,56,14],[51,2,51,3],[51,4,51,5],[51,6,51,7],[51,8,51,9],[51,10,51,11],[51,12,51,13],[56,15,56,16],[49,15,49,16],[50,2,50,3],[50,4,50,5],[50,6,50,7],[50,8,50,9],[50,10,50,11],[50,12,50,13],[50,15,50,16],[49,2,49,3],[49,4,49,5],[49,6,49,7],[49,8,49,9],[49,10,49,11],[49,12,49,13],[13,9,13,10],[13,11,13,14],[123,4,123,8],[123,10,123,11],[42,2,42,4],[42,5,42,6],[45,2,46,3],[58,6,58,15],[60,2,60,3],[60,4,60,5],[60,6,60,7],[60,8,60,9],[60,10,60,11],[60,13,60,14],[60,15,60,16],[57,2,57,3],[57,4,57,5],[57,6,57,7],[57,8,57,9],[47,15,47,16],[48,2,48,3],[48,4,48,5],[48,6,48,7],[48,8,48,9],[4,1,4,5],[4,6,4,7],[5,1,5,5],[5,6,5,7],[12,9,12,10],[12,11,12,14],[1,6,1,8],[1,9,1,10],[1,12,1,13],[2,1,2,5],[2,6,2,7],[3,1,3,5],[3,6,3,7],[48,15,48,16],[45,12,46,13],[45,15,46,16],[46,8,46,9],[46,10,46,11],[47,2,47,3],[47,4,47,5],[17,1,17,5],[18,1,18,5],[48,10,48,11],[48,12,48,13],[47,6,47,7],[47,8,47,9],[47,10,47,11],[47,12,47,13],[45,4,46,5],[45,6,46,7],[45,8,45,11],[21,2,21,5],[43,13,43,14],[15,8,15,10],[15,11,15,14],[20,8,20,10],[21,8,21,10],[22,8,22,10],[25,1,25,10],[26,1,26,10],[40,2,40,4],[40,5,40,9],[55,18,56,21],[81,18,83,21],[60,18,60,19],[61,18,61,19],[62,18,62,19],[63,18,63,19],[64,18,64,19],[65,18,65,19],[57,18,57,20]]}
["ステージ１：申請概要の入力",null,null,null,null,null,null,null,null,"管理申し送り事項欄"]
[null,null,null,null,null,null,"↓該当するものに「○」をプルダウン選択。",null,null,null,null,null,"出力シート"]
[null,"申請する内容",null,null,null,null,"申請区分",null,null,"ステージ２\n（機械装置）","ステージ３\n（施設整備等）",null,"出力シート\nICT別添6-1","まとめシート\nICT別添6"]
[null,"①　餌寄せロボット、発情発見装置、分娩監視装置、行動監視装置（繁殖）、行動監視装置（放牧）、乳頭洗浄機、移動式ほ乳機",null,null,null,null,null,null,null,"可能",null,null,"出力","出力"]
[null,"②　ほ乳ロボット（通常タイプ：レール式で無いもの）、自走式配餌車、 自動離脱装置付きミルカー",null,null,null,null,null,null,null,"可能",null,null,"出力","出力"]
[null,"②　搾乳ロボット、ミルキングパーラー、 搾乳ユニット搬送レール自動、搾乳ユニット搬送レール手動、ミルカー自動離脱装置、自動給餌機（濃厚飼料用）、自動給餌機（濃厚・粗飼料用）、自走式配餌車、ほ乳ロボット（据え置き式、レール式を含む）、バーンスクレーパー、敷料散布機",null,null,null,null,null,null,null,"可能",null,null,"出力","出力"]
[]
[]
[]
["ステージ２：機械装置の入力"]
[]
[]
[null,null,null,null,null,null,null,null,"応援会議番号：",null,null,"←県内の会議整理番号を入力"]
[null,null,null,null,null,null,null,null,"都道府県名：",null,null,"　※プルダウンで選択"]
[]
[null,null,null,null,null,null,null,"申込年月日",null,null,null,"←「yyyy/mm/dd」で入力"]
[]
["応援会議名",null,null,null,null,null,"※プルダウンで選択。"]
["会議の代表者名",null,null,null,null,null,"殿"]
[]
[null,null,null,null,null,null,null,"住所"]
[null,"新規応援会議名",null,null,null,null,null,"法人名称又は氏名"]
[null,"会議の代表者名",null,null,null,null,null,"（法人の場合 代表者名）"]
[]
[]
[null,"ICT化等機械装置等導入事業　酪農用"]
[null,"要望調査票作成用入力シート"]
[]
[]
[]
[]
[null,"１　経営の概況（令和６年５月１日現在）"]
[]
[null,null,"経産牛頭数",null,null,"頭"]
[null,null,"労働力",null,null,"人"]
[null,null,"年間総労働時間",null,null,"時間"]
[]
[null,"２　機械装置の導入関係"]
[null,"（１）搾乳方式の改善",null,null,null,null,null,null,null,null,null,"現状の搾乳方式と同種の機械装置を導入する場合、専門委員会の承認が必要です。"]
[null,null,"①現在の状況"]
[null,null,"現状の搾乳方式：",null,null,null,null,null,null,null,"【必須】",null,null,"▶同種の機械装置を導入"]
[]
[null,null,"自動乳頭洗浄機の保有：",null,null,null,null,"←現在保有の場合に「○」をプルダウンで選択。"]
[null,null,null,null,null,null,null,null,null,null,null,null,"現状のパーラー方式",null,null,"ストール数"]
[null,null,"②導入希望の機械装置"]
[null,null,"機械装置の種類",null,"搾乳ロボット",null,"ミルキングパーラー",null,"搾乳ユニット搬送レール",null,null,null,"ミルカー\n自動離脱装置",null,null,"自動乳頭洗浄機"]
[null,null,null,null,null,null,null,null,"自動搬送方式",null,"手動搬送方式"]
[null,null,"機械装置のメーカー名"]
[null,null,"型式"]
[null,null,"台(式)数"]
[null,null,"見積金額（税抜）の計"]
[null,null,"消費税額"]
[]
[]
[null,"（２）給餌方式の改善"]
[null,null,"①現在の状況",null,"↓現在保有の機械装置に「○」をプルダウン選択。全て未選択の場合は「人力による給餌方式」が自動選択。",null,null,null,null,null,null,null,null,null,null,null,null,null,"稲わら細断機の導入を希望する場合、\n専門委員会の承認が必要です。\n削減時間を手入力で記入してください。"]
[null,null,"  機械装置の種類",null,"自動給餌機（濃厚・粗飼料用）",null,"自動給餌機（濃厚飼料用）",null,"餌寄せロボット",null,"自走式配餌車",null,null,"ほ乳ロボット（据え置き式、レール式を含む）",null,"移動式ほ乳機"]
[null,null,"  機器の保有状況",null,null,null,null,null,null,null,null,null,null,null,null,null,null,null,"委員会対応要/別途説明資料有"]
[null,null,"  飼料給与関係機械装置の保有状況："]
[null,null,"②導入希望の機械装置",null,"（給餌）",null,null,null,0,null,null,null,null,"（ほ乳）"]
[null,null,"機械装置の種類",null,"自動給餌機（濃厚・粗飼料用）",null,"自動給餌機（濃厚飼料用）",null,"餌寄せロボット",null,"自走式配餌車",null,null,"ほ乳ロボット（据え置き式、レール式を含む）",null,"移動式ほ乳機",null,null,"稲わら細断機"]
[null,null,"機械装置のメーカー名"]
[null,null,"型式"]
[null,null,"台(式)数"]
[null,null,"見積金額（税抜）の計"]
[null,null,"消費税額"]
[]
[]
[null,"（３）家畜飼養管理の改善"]
[null,null,"（繁殖管理）",null,"↓現在保有の機械装置に「○」をプルダウン選択。",null,null,null,null,null,null,"（放牧管理）",null,"↓現在保有の機械装置に「○」をプルダウン選択。"]
[null,null,"①現在の状況",null,"全て未選択の場合は「人力による観察方式」が自動選択。",null,null,null,null,null,null,"①現在の状況",null,"全て未選択の場合は「人力による観察方式」が自動選択。"]
[null,null,"　機械装置の種類",null,"発情発見装置",null,"分娩監視装置",null,"行動監視装置（繁殖）",null,null,"　機械装置の種類",null,"行動監視装置（放牧）"]
[null,null,"　機器の保有状況",null,null,null,null,null,null,null,null,"　機器の保有状況"]
[null,null,"　家畜飼養管理機械装置の保有状況：",null,null,null,null,null,null,null,null,"　放牧管理機械装置の保有状況："]
[null,null,"②導入希望の機械装置",null,null,null,null,null,null,null,null,"②導入希望の機械装置"]
[null,null,"機械装置の種類",null,"発情発見装置",null,"分娩監視装置",null,"行動監視装置（繁殖）",null,null,"機械装置の種類",null,"行動監視装置（放牧）"]
[null,null,"機械装置のメーカー名",null,null,null,null,null,null,null,null,"機械装置のメーカー名"]
[null,null,"型式",null,null,null,null,null,null,null,null,"型式"]
[null,null,"台(式)数",null,null,null,null,null,null,null,null,"台(式)数"]
[null,null,"見積金額（税抜）の計",null,null,null,null,null,null,null,null,"見積金額（税抜）の計"]
[null,null,"消費税額",null,null,null,null,null,null,null,null,"消費税額"]
[null,null,null,null,null,null,null,null,null,null,null,null,null,null,null,null,null,null,"バーンクリーナーの導入を希望する場合、専門委員会の承認が必要です。\n削減時間を手入力で記入してください。"]
[null,null,"（除糞作業）",null,"↓現在保有の機械装置に「○」をプルダウン選択。",null,null,null,null,null,null,"（敷料散布作業）",null,"↓現在保有の機械装置に「○」をプルダウン選択。"]
[null,null,"①現在の状況",null,"全て未選択の場合は「バーンスクレーパーによらない除糞」が自動選択。",null,null,null,null,null,null,"①現在の状況",null,"全て未選択の場合は「人力による敷料散布」が自動選択。"]
[null,null,"バーンスクレーパーの保有：",null,null,null,null,null,null,null,null,"敷料散布機の保有：",null,null,null,null,null,null,"委員会対応要/別途説明資料有"]
[null,null,"　家畜飼養管理機械装置の保有状況：",null,null,null,null,null,null,null,null,"　家畜飼養管理機械装置の保有状況："]
[null,null,"②導入希望の機械装置",null,null,null,null,null,null,null,null,"②導入希望の機械装置"]
[null,null,"機械装置の種類",null,"バーンスクレーパー",null,null,null,null,null,null,"機械装置の種類",null,"敷料散布機",null,null,null,null,"バーンクリーナー"]
[null,null,"機械装置のメーカー名",null,null,null,null,null,null,null,null,"機械装置のメーカー名"]
[null,null,"型式",null,null,null,null,null,null,null,null,"型式"]
[null,null,"台(式)数",null,null,null,null,null,null,null,null,"台(式)数"]
[null,null,"見積金額（税抜）の計",null,null,null,null,null,null,null,null,"見積金額（税抜）の計"]
[null,null,"消費税額",null,null,null,null,null,null,null,null,"消費税額"]
[]
[null,"注１：導入を希望する機械装置の種類ごとに必要事項を入力します。"]
[null,"　２：見積金額(税抜)の計は、消費税を除いた機械装置の導入価格の合計額を入力して下さい。"]
[]
[null,"３　機械装置の導入方式",null,null,null,null,null,null,null,null,"　※プルダウンで選択"]
[null,"注１：リース方式か、購入方式か記入する。"]
[null,"　２：購入方式を選択する場合は、別紙10のⅠの第１の12の（３）のアに取り組む経営体に限る。"]
[]
[null,"４　機械装置導入により想定される労働時間の削減効果",null,null,null,null,null,null,null,null,null,null,null,null,null,null,null,null,"申請②","申請②と③"]
[null,"（１）労働負担軽減経営体における削減労働時間",null,null,null,null,null,"チェックボタン押下後、自動計算されます",null,"時間","【自動計算】\n搾乳牛１頭当たり削減労働時間×経産牛頭数×12/14、小数点以下四捨五入",null,null,null,null,null,null,null,360,0]
[null,null,"※削減労働時間は、別添４の「労働時間削減効果分析」の第３「削減が期待される年間労働時間の考え方」に基づき算出します"]
[null,"（２）削減労働時間の検証方法",null,null,null,null,null,null,null,null,null,null,null,"　※プルダウンで選択"]
[]
[]
[]
[null,"５　機械装置の導入に伴う飼養管理の改善への取組"]
[null,null,null,null,null,null,null,null,null,"該当の取組がある場合、「○」をプルダウン選択↓","(参考)左記の回答根拠を\n示す添付資料の例",null,"(参考)\n係数"]
[null,null,"\n１　後継者",null,"①　今後とも安定的な経営継続が見込まれる経\n　営として(1)又は(2)に該当する経営\n　(1)主たる経営者が45歳未満\n　(2)主たる経営者が45歳以上の場合、後継者\n　　となる子息・子女又は概ね15歳以上の後\n　　継者の確保",null,null,null,null,null,"年齢の確認できるもの、家族労働協定、農業経営改善計画認定申請書、畜産経営診断結果、酪農・畜産専門紙や業界誌の紹介記事、経営コンクールの事例紹介資料　等",null,0.9]
[null,null,null,null,"②　①に該当しない場合、後継者の確保に向け\n　た取組の実施",null,null,null,null,null,"法人経営の定款　等",null,0.95]
[null,null,"２　乳用後継牛",null,"①　自家の牛群更新に必要な乳用牛を概ね自家\n　生産により確保する経営",null,null,null,null,null,"牛群検定成績表（乳検成績表）、畜産経営診断結果、酪農・畜産専門紙や業界誌の紹介記事、経営コンクールの事例紹介資料　等",null,0.9]
[null,null,null,null,"②　①以外の場合、自家の牛群更新に必要な乳\n　用牛の自家生産に取り組む経営",null,null,null,null,null,"酪農・畜産専門紙や業界誌の紹介記事、経営コンクールの事例紹介資料　等",null,0.95]
[null,null,"３　飼養管理",null,"飼養管理の高度化に取り組む経営",null,null,null,null,null,null,null,0.9]
[null,null,"３　その他",null,"①　地震・台風等の災害等に備えた、地域にお\n　ける互助協定に参加する経営",null,null,null,null,null,"災害互助協定書　等",null,0.95]
[null,null,"（複数回答可）",null,"②　畜産（酪農）従事者の疾病時等の経営継続に\n　備えた、地域における互助協定に参加する経営",null,null,null,null,null,"地域の酪農家が相互で締結している疾病時等の互助協定書　等",null,0.95]
[null,null,null,null,"③　地震・台風等により被災した経営",null,null,null,null,null,"罹災証明書、被災した時に撮影した畜産施設等の写真　等",null,0.9]
[null,null,null,null,"④　畜産・酪農収益力強化整備等特別対策事業\n　による補助を受けていない経営",null,null,null,null,null,null,null,0.95]
[null,null,null,null,"⑤　牛群検定に加入している経営",null,null,null,null,null,"牛群検定成績表（乳検成績表）",null,0.9]
[null,null,null,null,"⑥　供用期間の延長等を図るため、自給飼料の\n　飼料分析や技術者との意見交換を定期的に行\n　う経営",null,null,null,null,null,"自給飼料の分析結果、地域の支援組織や団体等が開催する自給飼料に関する勉強会の資料及び出席者名簿　等",null,0.95]
[null,null,null,null,"⑦　応援会議の構成員の中で、JGAP家畜・\n　畜産物の認証農場又は、GAP取得チャレンジシ\n　ステムの確認済み農場がある場合",null,null,null,null,null,"JGAP確認書(写)、GAP取得チャレンジの取組農場一覧リストの出力結果　等",null,0.95]
[null,null,null,null,"⑧　応援会議の構成員の中で、農場HACCP推\n　進農場として指定されている経営がある場合",null,null,null,null,null,"農場HACCP推進農場指定書(写)、農場HACCP認証書(写)　等",null,0.95]
[null,null,null,null,"⑨　環境と調和のとれた食料システムの確立のための環境負荷低減事業活動の促進等に関する法律（令和４年法律第 37 号。）に基づく環境負荷低減事業活動実施計画又は特定環境負荷低減事業活動実施計画の認定を受けている経営",null,null,null,null,null,null,null,0.9]
[null,null,null,null,"⑩　作業安全に関する取組を実施している経営",null,null,null,null,null,"「農作業安全シート」の提出",null,0.9]
[null,null,null,null,"⑪　その他、地域への貢献度が高い取組と事業\n　実施主体が特に認めた取組に参加する経営",null,null,null,null,null,"経営コンクールの表彰状　等",null,0.9]
[null,null,null,null,null,null,null,null,0]
[null,"６　労働時間削減効果分析の結果",null,null,null,null,null,"【自動計算】",null,null,"※チェックボタン押下後、自動計算されます",null,null,null,null,null,null,null,0]
[null,null,"補助金申請額（税抜）の合計額／削減が期待される年間総労働時間（時間）×係数／10000、小数点第４位を切り捨て"]
[null,null,"※費用対効果分析の結果は、別添４の「労働時間削減効果分析」の第２「評価点数の算出式」に基づき算出します。"]

{"sheet":"出力シート（ICT 別添6-1）","index":1,"n_rows":142,"n_cols":16,"rows_kept":142,"cut":false,"hidden":false,"merged":[[138,1,138,14],[139,1,139,14],[140,1,140,14],[141,1,141,14],[131,1,131,14],[132,1,132,14],[133,1,133,9],[134,1,134,9],[135,1,135,9],[137,1,137,14],[125,1,125,14],[126,1,126,14],[127,1,127,14],[128,1,128,14],[129,1,129,14],[130,1,130,14],[119,1,119,14],[120,1,120,14],[121,1,121,14],[122,1,122,14],[123,1,123,14],[124,1,124,14],[113,1,113,14],[114,1,114,14],[115,1,115,14],[116,1,116,14],[117,1,117,14],[118,1,118,14],[106,1,106,14],[108,1,108,14],[109,1,109,14],[110,1,110,14],[111,1,111,14],[112,1,112,14],[87,2,87,3],[87,4,87,8],[89,8,89,9],[97,2,97,14],[102,2,102,14],[105,1,105,14],[81,2,81,3],[81,4,81,8],[82,4,82,8],[83,4,83,8],[84,4,84,8],[86,2,86,3],[86,4,86,8],[85,4,85,8],[78,2,78,3],[78,4,78,8],[79,2,79,3],[79,4,79,8],[80,2,80,3],[80,4,80,8],[75,2,75,3],[75,4,75,8],[76,2,76,3],[76,4,76,8],[77,2,77,3],[77,4,77,8],[66,5,66,13],[72,2,72,3],[72,4,72,8],[73,2,73,3],[73,4,73,8],[74,2,74,3],[74,4,74,8],[55,2,55,3],[55,4,55,5],[55,6,55,7],[55,10,55,11],[55,12,55,13],[59,7,59,9],[53,2,53,3],[53,4,53,5],[53,6,53,7],[53,10,53,11],[53,12,53,13],[54,2,54,3],[54,4,54,5],[54,6,54,7],[54,10,54,11],[54,12,54,13],[51,2,51,3],[51,4,51,5],[51,6,51,7],[51,10,51,11],[51,12,51,13],[52,2,52,3],[52,4,52,5],[52,6,52,7],[52,10,52,11],[52,12,52,13],[48,6,48,9],[50,2,50,3],[50,4,50,5],[50,6,50,7],[50,10,50,11],[50,12,50,13],[43,2,43,3],[43,4,43,5],[43,6,43,7],[43,10,43,11],[43,12,43,13],[44,2,44,3],[44,4,44,5],[44,6,44,7],[44,10,44,11],[44,12,44,13],[41,2,41,3],[41,4,41,5],[41,6,41,7],[41,10,41,11],[41,12,41,13],[42,2,42,3],[42,4,42,5],[42,6,42,7],[42,10,42,11],[42,12,42,13],[37,6,37,9],[39,4,39,5],[39,6,39,7],[39,10,39,11],[39,12,39,13],[40,2,40,3],[40,4,40,5],[40,6,40,7],[40,10,40,11],[40,12,40,13],[32,2,32,3],[32,4,32,5],[32,6,32,7],[32,10,32,11],[32,12,32,13],[33,2,33,3],[33,4,33,5],[33,6,33,7],[33,10,33,11],[33,12,33,13],[30,2,30,3],[30,4,30,5],[30,6,30,7],[30,10,30,11],[30,12,30,13],[31,2,31,3],[31,4,31,5],[31,6,31,7],[31,10,31,11],[31,12,31,13],[27,12,28,13],[29,2,29,3],[29,4,29,5],[29,6,29,7],[29,10,29,11],[29,12,29,13],[2,9,2,14],[4,11,4,14],[12,1,12,14],[14,1,14,14],[25,6,25,9],[27,2,28,3],[27,4,28,5],[27,6,28,7],[27,8,27,9],[27,10,28,11],[53,14,53,15],[54,14,54,15],[55,14,55,15],[39,14,39,15],[40,14,40,15],[41,14,41,15],[42,14,42,15],[43,14,43,15],[44,14,44,15],[50,14,50,15],[51,14,51,15],[52,14,52,15]]}
[null,"ICT化等機械装置等導入事業"]
[null,"別添6-1"]
[null,null,null,null,null,null,null,null,"都道府県名：",{"$f":"IF('機械装置入力シート（ICT酪農用）'!J14=0,\"\",'機械装置入力シート（ICT酪農用）'!J14)","v":""}]
[]
[null,null,null,null,null,null,null,null,null,null,null,{"$f":"IF('機械装置入力シート（ICT酪農用）'!$I$16=0,\"\",'機械装置入力シート（ICT酪農用）'!$I$16)","v":""}]
[null,{"$f":"IF('機械装置入力シート（ICT酪農用）'!$C$22=\"\",IF('機械装置入力シート（ICT酪農用）'!$B$18=\"\",\"\",'機械装置入力シート（ICT酪農用）'!$B$18),'機械装置入力シート（ICT酪農用）'!$C$22)","v":""}]
[null,{"$f":"IF(AND('機械装置入力シート（ICT酪農用）'!$C$23=\"\",'機械装置入力シート（ICT酪農用）'!$B$19=\"\"),\"\",IF('機械装置入力シート（ICT酪農用）'!$C$23=0,'機械装置入力シート（ICT酪農用）'!$B$19,'機械装置入力シート（ICT酪農用）'!$C$23)&\"  殿\")","v":""}]
[]
[null,null,null,null,null,null,null,"所在地",null,{"$f":"IF('機械装置入力シート（ICT酪農用）'!$I$21=0,\"\",'機械装置入力シート（ICT酪農用）'!$I$21)","v":""}]
[null,null,null,null,null,null,null,"法人名称又は氏名",null,{"$f":"IF('機械装置入力シート（ICT酪農用）'!I22=0,\"\",'機械装置入力シート（ICT酪農用）'!I22)","v":""}]
[null,null,null,null,null,null,null,"（法人の場合 代表者名）",null,{"$f":"IF('機械装置入力シート（ICT酪農用）'!I23=0,\"\",'機械装置入力シート（ICT酪農用）'!I23)","v":""}]
[]
[null,"ICT化等機械装置等導入事業　要望調査票"]
[]
[null,"ICT化等機械装置等導入事業において、労働負担軽減のための機械装置を導入したいので、要望書を提出する。"]
[]
[null,"１　経営の概況（令和６年５月１日現在）"]
[]
[null,null,"経産牛頭数",null,{"$f":"IF('機械装置入力シート（ICT酪農用）'!E34=0,\"\",'機械装置入力シート（ICT酪農用）'!E34)","v":""},"頭"]
[null,null,"労働力",null,{"$f":"IF('機械装置入力シート（ICT酪農用）'!E35=0,\"\",'機械装置入力シート（ICT酪農用）'!E35)","v":""},"人"]
[null,null,"年間総労働時間",null,{"$f":"IF('機械装置入力シート（ICT酪農用）'!E36=0,\"\",'機械装置入力シート（ICT酪農用）'!E36)","v":""},"時間",null,"総労働時間で計算"]
[]
[null,"２　機械装置の導入関係"]
[null,"（１）搾乳方式の改善"]
[null,null,"①現在の状況"]
[null,null,null,null,null,"搾乳方式：",{"$f":"IF(OR('機械装置入力シート（ICT酪農用）'!G4=\"○\",'機械装置入力シート（ICT酪農用）'!G5=\"○\",'機械装置入力シート（ICT酪農用）'!G6=\"○\"),IF('機械装置入力シート（ICT酪農用）'!F41=0,\"\",'機械装置入力シート（ICT酪農用）'!F41),\"\")","v":""}]
[null,null,"②導入希望の機械装置"]
[null,null,"機械装置の種類",null,"搾乳ロボット",null,"ミルキングパーラー",null,"搾乳ユニット搬送レール",null,"ミルカー自動離脱装置",null,"自動乳頭洗浄機"]
[null,null,null,null,null,null,null,null,"自動","手動"]
[null,null,"機械装置のメーカー名",null,{"$f":"IF('機械装置入力シート（ICT酪農用）'!$G$6 = \"○\",IF('機械装置入力シート（ICT酪農用）'!E48=0,\"\",'機械装置入力シート（ICT酪農用）'!E48),\"\")","v":""},null,{"$f":"IF('機械装置入力シート（ICT酪農用）'!$G$6 = \"○\",IF('機械装置入力シート（ICT酪農用）'!G48=0,\"\",'機械装置入力シート（ICT酪農用）'!G48),\"\")","v":""},null,{"$f":"IF('機械装置入力シート（ICT酪農用）'!$G$6 = \"○\",IF('機械装置入力シート（ICT酪農用）'!$I48=0,\"\",'機械装置入力シート（ICT酪農用）'!$I48),\"\")","v":""},{"$f":"IF('機械装置入力シート（ICT酪農用）'!$G$6 = \"○\",IF('機械装置入力シート（ICT酪農用）'!$K48=0,\"\",'機械装置入力シート（ICT酪農用）'!$K48),\"\")","v":""},{"$f":"IF('機械装置入力シート（ICT酪農用）'!$G$6 = \"○\",IF('機械装置入力シート（ICT酪農用）'!M48=0,\"\",'機械装置入力シート（ICT酪農用）'!M48),\"\")","v":""},null,{"$f":"IF('機械装置入力シート（ICT酪農用）'!$G$4 = \"○\",IF('機械装置入力シート（ICT酪農用）'!P48=0,\"\",'機械装置入力シート（ICT酪農用）'!P48),\"\")","v":""}]
[null,null,"型式",null,{"$f":"IF('機械装置入力シート（ICT酪農用）'!$G$6 = \"○\",IF('機械装置入力シート（ICT酪農用）'!E49=0,\"\",'機械装置入力シート（ICT酪農用）'!E49),\"\")","v":""},null,{"$f":"IF('機械装置入力シート（ICT酪農用）'!$G$6 = \"○\",IF('機械装置入力シート（ICT酪農用）'!G49=0,\"\",'機械装置入力シート（ICT酪農用）'!G49),\"\")","v":""},null,{"$f":"IF('機械装置入力シート（ICT酪農用）'!$G$6 = \"○\",IF('機械装置入力シート（ICT酪農用）'!$I49=0,\"\",'機械装置入力シート（ICT酪農用）'!$I49),\"\")","v":""},{"$f":"IF('機械装置入力シート（ICT酪農用）'!$G$6 = \"○\",IF('機械装置入力シート（ICT酪農用）'!$K49=0,\"\",'機械装置入力シート（ICT酪農用）'!$K49),\"\")","v":""},{"$f":"IF('機械装置入力シート（ICT酪農用）'!$G$6 = \"○\",IF('機械装置入力シート（ICT酪農用）'!M49=0,\"\",'機械装置入力シート（ICT酪農用）'!M49),\"\")","v":""},null,{"$f":"IF('機械装置入力シート（ICT酪農用）'!$G$4 = \"○\",IF('機械装置入力シート（ICT酪農用）'!P49=0,\"\",'機械装置入力シート（ICT酪農用）'!P49),\"\")","v":""}]
[null,null,"台数",null,{"$f":"IF('機械装置入力シート（ICT酪農用）'!$G$6 = \"○\",IF('機械装置入力シート（ICT酪農用）'!E50=0,\"\",'機械装置入力シート（ICT酪農用）'!E50),\"\")","v":""},null,{"$f":"IF('機械装置入力シート（ICT酪農用）'!$G$6 = \"○\",IF('機械装置入力シート（ICT酪農用）'!G50=0,\"\",'機械装置入力シート（ICT酪農用）'!G50),\"\")","v":""},null,{"$f":"IF('機械装置入力シート（ICT酪農用）'!$G$6 = \"○\",IF('機械装置入力シート（ICT酪農用）'!$I50=0,\"\",'機械装置入力シート（ICT酪農用）'!$I50),\"\")","v":""},{"$f":"IF('機械装置入力シート（ICT酪農用）'!$G$6 = \"○\",IF('機械装置入力シート（ICT酪農用）'!$K50=0,\"\",'機械装置入力シート（ICT酪農用）'!$K50),\"\")","v":""},{"$f":"IF('機械装置入力シート（ICT酪農用）'!$G$6 = \"○\",IF('機械装置入力シート（ICT酪農用）'!M50=0,\"\",'機械装置入力シート（ICT酪農用）'!M50),\"\")","v":""},null,{"$f":"IF('機械装置入力シート（ICT酪農用）'!$G$4 = \"○\",IF('機械装置入力シート（ICT酪農用）'!P50=0,\"\",'機械装置入力シート（ICT酪農用）'!P50),\"\")","v":""}]
[null,null,"本体価格（税抜）",null,{"$f":"IF('機械装置入力シート（ICT酪農用）'!$G$6 = \"○\",IF('機械装置入力シート（ICT酪農用）'!E51=0,\"\",'機械装置入力シート（ICT酪農用）'!E51),\"\")","v":""},null,{"$f":"IF('機械装置入力シート（ICT酪農用）'!$G$6 = \"○\",IF('機械装置入力シート（ICT酪農用）'!G51=0,\"\",'機械装置入力シート（ICT酪農用）'!G51),\"\")","v":""},null,{"$f":"IF('機械装置入力シート（ICT酪農用）'!$G$6 = \"○\",IF('機械装置入力シート（ICT酪農用）'!$I51=0,\"\",'機械装置入力シート（ICT酪農用）'!$I51),\"\")","v":""},{"$f":"IF('機械装置入力シート（ICT酪農用）'!$G$6 = \"○\",IF('機械装置入力シート（ICT酪農用）'!$K51=0,\"\",'機械装置入力シート（ICT酪農用）'!$K51),\"\")","v":""},{"$f":"IF('機械装置入力シート（ICT酪農用）'!$G$6 = \"○\",IF('機械装置入力シート（ICT酪農用）'!M51=0,\"\",'機械装置入力シート（ICT酪農用）'!M51),\"\")","v":""},null,{"$f":"IF('機械装置入力シート（ICT酪農用）'!$G$4 = \"○\",IF('機械装置入力シート（ICT酪農用）'!P51=0,\"\",'機械装置入力シート（ICT酪農用）'!P51),\"\")","v":""}]
[null,null,"消費税額",null,{"$f":"IF('機械装置入力シート（ICT酪農用）'!$G$6 = \"○\",IF('機械装置入力シート（ICT酪農用）'!E52=0,\"\",'機械装置入力シート（ICT酪農用）'!E52),\"\")","v":""},null,{"$f":"IF('機械装置入力シート（ICT酪農用）'!$G$6 = \"○\",IF('機械装置入力シート（ICT酪農用）'!G52=0,\"\",'機械装置入力シート（ICT酪農用）'!G52),\"\")","v":""},null,{"$f":"IF('機械装置入力シート（ICT酪農用）'!$G$6 = \"○\",IF('機械装置入力シート（ICT酪農用）'!$I52=0,\"\",'機械装置入力シート（ICT酪農用）'!$I52),\"\")","v":""},{"$f":"IF('機械装置入力シート（ICT酪農用）'!$G$6 = \"○\",IF('機械装置入力シート（ICT酪農用）'!$K52=0,\"\",'機械装置入力シート（ICT酪農用）'!$K52),\"\")","v":""},{"$f":"IF('機械装置入力シート（ICT酪農用）'!$G$6 = \"○\",IF('機械装置入力シート（ICT酪農用）'!M52=0,\"\",'機械装置入力シート（ICT酪農用）'!M52),\"\")","v":""},null,{"$f":"IF('機械装置入力シート（ICT酪農用）'!$G$4 = \"○\",IF('機械装置入力シート（ICT酪農用）'!P52=0,\"\",'機械装置入力シート（ICT酪農用）'!P52),\"\")","v":""}]
[]
[null,"（２）給餌方式の改善"]
[null,null,"①現在の状況"]
[null,null,null,null,null,"飼料給与関係機械装置の保有状況：",{"$f":"IF(OR('機械装置入力シート（ICT酪農用）'!G4=\"○\",'機械装置入力シート（ICT酪農用）'!G5=\"○\",'機械装置入力シート（ICT酪農用）'!G6=\"○\"),IF('機械装置入力シート（ICT酪農用）'!G59=0,\"\",'機械装置入力シート（ICT酪農用）'!G59),\"\")","v":""}]
[null,null,"②導入希望の機械装置"]
[null,null,"機械装置の種類",null,"自動給餌機\n（濃厚・粗飼料）",null,"自動給餌機（濃厚飼料）",null,"餌寄せロボット","ほ乳ロボット","自走式配餌車",null,"移動式ほ乳機",null,"稲わら細断機"]
[null,null,"機械装置のメーカー名",null,{"$f":"IF('機械装置入力シート（ICT酪農用）'!$G$6 = \"○\",IF('機械装置入力シート（ICT酪農用）'!E62=0,\"\",'機械装置入力シート（ICT酪農用）'!E62),\"\")","v":""},null,{"$f":"IF('機械装置入力シート（ICT酪農用）'!$G$6 = \"○\",IF('機械装置入力シート（ICT酪農用）'!G62=0,\"\",'機械装置入力シート（ICT酪農用）'!G62),\"\")","v":""},null,{"$f":"IF('機械装置入力シート（ICT酪農用）'!$G$4 = \"○\",IF('機械装置入力シート（ICT酪農用）'!I62=0,\"\",'機械装置入力シート（ICT酪農用）'!I62),\"\")","v":""},{"$f":"IF('機械装置入力シート（ICT酪農用）'!$G$6 = \"○\",IF('機械装置入力シート（ICT酪農用）'!$N62=0,\"\",'機械装置入力シート（ICT酪農用）'!$N62),\"\")","v":""},{"$f":"IF('機械装置入力シート（ICT酪農用）'!$G$6 = \"○\",IF('機械装置入力シート（ICT酪農用）'!K62=0,\"\",'機械装置入力シート（ICT酪農用）'!K62),\"\")","v":""},null,{"$f":"IF('機械装置入力シート（ICT酪農用）'!$G$4 = \"○\",IF('機械装置入力シート（ICT酪農用）'!$P62=0,\"\",'機械装置入力シート（ICT酪農用）'!$P62),\"\")","v":""},"",{"$f":"IF('機械装置入力シート（ICT酪農用）'!$S62=0,\"\",'機械装置入力シート（ICT酪農用）'!$S62)","v":""},""]
[null,null,"型式",null,{"$f":"IF('機械装置入力シート（ICT酪農用）'!$G$6 = \"○\",IF('機械装置入力シート（ICT酪農用）'!E63=0,\"\",'機械装置入力シート（ICT酪農用）'!E63),\"\")","v":""},null,{"$f":"IF('機械装置入力シート（ICT酪農用）'!$G$6 = \"○\",IF('機械装置入力シート（ICT酪農用）'!G63=0,\"\",'機械装置入力シート（ICT酪農用）'!G63),\"\")","v":""},null,{"$f":"IF('機械装置入力シート（ICT酪農用）'!$G$4 = \"○\",IF('機械装置入力シート（ICT酪農用）'!I63=0,\"\",'機械装置入力シート（ICT酪農用）'!I63),\"\")","v":""},{"$f":"IF('機械装置入力シート（ICT酪農用）'!$G$6 = \"○\",IF('機械装置入力シート（ICT酪農用）'!$N63=0,\"\",'機械装置入力シート（ICT酪農用）'!$N63),\"\")","v":""},{"$f":"IF('機械装置入力シート（ICT酪農用）'!$G$6 = \"○\",IF('機械装置入力シート（ICT酪農用）'!K63=0,\"\",'機械装置入力シート（ICT酪農用）'!K63),\"\")","v":""},null,{"$f":"IF('機械装置入力シート（ICT酪農用）'!$G$4 = \"○\",IF('機械装置入力シート（ICT酪農用）'!$P63=0,\"\",'機械装置入力シート（ICT酪農用）'!$P63),\"\")","v":""},"",{"$f":"IF('機械装置入力シート（ICT酪農用）'!$S63=0,\"\",'機械装置入力シート（ICT酪農用）'!$S63)","v":""},""]
[null,null,"台数",null,{"$f":"IF('機械装置入力シート（ICT酪農用）'!$G$6 = \"○\",IF('機械装置入力シート（ICT酪農用）'!E64=0,\"\",'機械装置入力シート（ICT酪農用）'!E64),\"\")","v":""},null,{"$f":"IF('機械装置入力シート（ICT酪農用）'!$G$6 = \"○\",IF('機械装置入力シート（ICT酪農用）'!G64=0,\"\",'機械装置入力シート（ICT酪農用）'!G64),\"\")","v":""},null,{"$f":"IF('機械装置入力シート（ICT酪農用）'!$G$4 = \"○\",IF('機械装置入力シート（ICT酪農用）'!I64=0,\"\",'機械装置入力シート（ICT酪農用）'!I64),\"\")","v":""},{"$f":"IF('機械装置入力シート（ICT酪農用）'!$G$6 = \"○\",IF('機械装置入力シート（ICT酪農用）'!$N64=0,\"\",'機械装置入力シート（ICT酪農用）'!$N64),\"\")","v":""},{"$f":"IF('機械装置入力シート（ICT酪農用）'!$G$6 = \"○\",IF('機械装置入力シート（ICT酪農用）'!K64=0,\"\",'機械装置入力シート（ICT酪農用）'!K64),\"\")","v":""},null,{"$f":"IF('機械装置入力シート（ICT酪農用）'!$G$4 = \"○\",IF('機械装置入力シート（ICT酪農用）'!$P64=0,\"\",'機械装置入力シート（ICT酪農用）'!$P64),\"\")","v":""},"",{"$f":"IF('機械装置入力シート（ICT酪農用）'!$S64=0,\"\",'機械装置入力シート（ICT酪農用）'!$S64)","v":""},""]
[null,null,"本体価格（税抜)",null,{"$f":"IF('機械装置入力シート（ICT酪農用）'!$G$6 = \"○\",IF('機械装置入力シート（ICT酪農用）'!E65=0,\"\",'機械装置入力シート（ICT酪農用）'!E65),\"\")","v":""},null,{"$f":"IF('機械装置入力シート（ICT酪農用）'!$G$6 = \"○\",IF('機械装置入力シート（ICT酪農用）'!G65=0,\"\",'機械装置入力シート（ICT酪農用）'!G65),\"\")","v":""},null,{"$f":"IF('機械装置入力シート（ICT酪農用）'!$G$4 = \"○\",IF('機械装置入力シート（ICT酪農用）'!I65=0,\"\",'機械装置入力シート（ICT酪農用）'!I65),\"\")","v":""},{"$f":"IF('機械装置入力シート（ICT酪農用）'!$G$6 = \"○\",IF('機械装置入力シート（ICT酪農用）'!$N65=0,\"\",'機械装置入力シート（ICT酪農用）'!$N65),\"\")","v":""},{"$f":"IF('機械装置入力シート（ICT酪農用）'!$G$6 = \"○\",IF('機械装置入力シート（ICT酪農用）'!K65=0,\"\",'機械装置入力シート（ICT酪農用）'!K65),\"\")","v":""},null,{"$f":"IF('機械装置入力シート（ICT酪農用）'!$G$4 = \"○\",IF('機械装置入力シート（ICT酪農用）'!$P65=0,\"\",'機械装置入力シート（ICT酪農用）'!$P65),\"\")","v":""},"",{"$f":"IF('機械装置入力シート（ICT酪農用）'!$S65=0,\"\",'機械装置入力シート（ICT酪農用）'!$S65)","v":""},""]
[null,null,"消費税額",null,{"$f":"IF('機械装置入力シート（ICT酪農用）'!$G$6 = \"○\",IF('機械装置入力シート（ICT酪農用）'!E66=0,\"\",'機械装置入力シート（ICT酪農用）'!E66),\"\")","v":""},null,{"$f":"IF('機械装置入力シート（ICT酪農用）'!$G$6 = \"○\",IF('機械装置入力シート（ICT酪農用）'!G66=0,\"\",'機械装置入力シート（ICT酪農用）'!G66),\"\")","v":""},null,{"$f":"IF('機械装置入力シート（ICT酪農用）'!$G$4 = \"○\",IF('機械装置入力シート（ICT酪農用）'!I66=0,\"\",'機械装置入力シート（ICT酪農用）'!I66),\"\")","v":""},{"$f":"IF('機械装置入力シート（ICT酪農用）'!$G$6 = \"○\",IF('機械装置入力シート（ICT酪農用）'!$N66=0,\"\",'機械装置入力シート（ICT酪農用）'!$N66),\"\")","v":""},{"$f":"IF('機械装置入力シート（ICT酪農用）'!$G$6 = \"○\",IF('機械装置入力シート（ICT酪農用）'!K66=0,\"\",'機械装置入力シート（ICT酪農用）'!K66),\"\")","v":""},null,{"$f":"IF('機械装置入力シート（ICT酪農用）'!$G$4 = \"○\",IF('機械装置入力シート（ICT酪農用）'!$P66=0,\"\",'機械装置入力シート（ICT酪農用）'!$P66),\"\")","v":""},"",{"$f":"IF('機械装置入力シート（ICT酪農用）'!$S66=0,\"\",'機械装置入力シート（ICT酪農用）'!$S66)","v":""},""]
[]
[null,"（３）家畜飼養管理の改善"]
[null,null,"①現在の状況"]
[null,null,null,null,null,"家畜飼養管理機械装置の保有状況："]
[null,null,"②導入希望の機械装置"]
[null,null,"機械装置の種類",null,"発情発見装置",null,"分娩監視装置",null,"バーンスクレーパー","敷料散布機","行動監視装置\n（繁殖管理）",null,"行動監視装置（放牧）",null,"バーン\nクリーナー"]
[null,null,"機械装置のメーカー名",null,{"$f":"IF('機械装置入力シート（ICT酪農用）'!$G$4 = \"○\",IF('機械装置入力シート（ICT酪農用）'!E77=0,\"\",'機械装置入力シート（ICT酪農用）'!E77),\"\")","v":""},null,{"$f":"IF('機械装置入力シート（ICT酪農用）'!$G$4 = \"○\",IF('機械装置入力シート（ICT酪農用）'!G77=0,\"\",'機械装置入力シート（ICT酪農用）'!G77),\"\")","v":""},null,{"$f":"IF('機械装置入力シート（ICT酪農用）'!$G$6 = \"○\",IF('機械装置入力シート（ICT酪農用）'!$E89=0,\"\",'機械装置入力シート（ICT酪農用）'!$E89),\"\")","v":""},{"$f":"IF('機械装置入力シート（ICT酪農用）'!$G$6 = \"○\",IF('機械装置入力シート（ICT酪農用）'!$N89=0,\"\",'機械装置入力シート（ICT酪農用）'!$N89),\"\")","v":""},{"$f":"IF('機械装置入力シート（ICT酪農用）'!$G$4 = \"○\",IF('機械装置入力シート（ICT酪農用）'!I77=0,\"\",'機械装置入力シート（ICT酪農用）'!I77),\"\")","v":""},null,{"$f":"IF('機械装置入力シート（ICT酪農用）'!$G$4 = \"○\",IF('機械装置入力シート（ICT酪農用）'!N77=0,\"\",'機械装置入力シート（ICT酪農用）'!N77),\"\")","v":""},null,{"$f":"IF('機械装置入力シート（ICT酪農用）'!S89=0,\"\",'機械装置入力シート（ICT酪農用）'!S89)","v":""}]
[null,null,"型式",null,{"$f":"IF('機械装置入力シート（ICT酪農用）'!$G$4 = \"○\",IF('機械装置入力シート（ICT酪農用）'!E78=0,\"\",'機械装置入力シート（ICT酪農用）'!E78),\"\")","v":""},null,{"$f":"IF('機械装置入力シート（ICT酪農用）'!$G$4 = \"○\",IF('機械装置入力シート（ICT酪農用）'!G78=0,\"\",'機械装置入力シート（ICT酪農用）'!G78),\"\")","v":""},null,{"$f":"IF('機械装置入力シート（ICT酪農用）'!$G$6 = \"○\",IF('機械装置入力シート（ICT酪農用）'!$E90=0,\"\",'機械装置入力シート（ICT酪農用）'!$E90),\"\")","v":""},{"$f":"IF('機械装置入力シート（ICT酪農用）'!$G$6 = \"○\",IF('機械装置入力シート（ICT酪農用）'!$N90=0,\"\",'機械装置入力シート（ICT酪農用）'!$N90),\"\")","v":""},{"$f":"IF('機械装置入力シート（ICT酪農用）'!$G$4 = \"○\",IF('機械装置入力シート（ICT酪農用）'!I78=0,\"\",'機械装置入力シート（ICT酪農用）'!I78),\"\")","v":""},null,{"$f":"IF('機械装置入力シート（ICT酪農用）'!$G$4 = \"○\",IF('機械装置入力シート（ICT酪農用）'!N78=0,\"\",'機械装置入力シート（ICT酪農用）'!N78),\"\")","v":""},null,{"$f":"IF('機械装置入力シート（ICT酪農用）'!S90=0,\"\",'機械装置入力シート（ICT酪農用）'!S90)","v":""}]
[null,null,"台数",null,{"$f":"IF('機械装置入力シート（ICT酪農用）'!$G$4 = \"○\",IF('機械装置入力シート（ICT酪農用）'!E79=0,\"\",'機械装置入力シート（ICT酪農用）'!E79),\"\")","v":""},null,{"$f":"IF('機械装置入力シート（ICT酪農用）'!$G$4 = \"○\",IF('機械装置入力シート（ICT酪農用）'!G79=0,\"\",'機械装置入力シート（ICT酪農用）'!G79),\"\")","v":""},null,{"$f":"IF('機械装置入力シート（ICT酪農用）'!$G$6 = \"○\",IF('機械装置入力シート（ICT酪農用）'!$E91=0,\"\",'機械装置入力シート（ICT酪農用）'!$E91),\"\")","v":""},{"$f":"IF('機械装置入力シート（ICT酪農用）'!$G$6 = \"○\",IF('機械装置入力シート（ICT酪農用）'!$N91=0,\"\",'機械装置入力シート（ICT酪農用）'!$N91),\"\")","v":""},{"$f":"IF('機械装置入力シート（ICT酪農用）'!$G$4 = \"○\",IF('機械装置入力シート（ICT酪農用）'!I79=0,\"\",'機械装置入力シート（ICT酪農用）'!I79),\"\")","v":""},null,{"$f":"IF('機械装置入力シート（ICT酪農用）'!$G$4 = \"○\",IF('機械装置入力シート（ICT酪農用）'!N79=0,\"\",'機械装置入力シート（ICT酪農用）'!N79),\"\")","v":""},null,{"$f":"IF('機械装置入力シート（ICT酪農用）'!S91=0,\"\",'機械装置入力シート（ICT酪農用）'!S91)","v":""}]
[null,null,"本体価格（税抜）",null,{"$f":"IF('機械装置入力シート（ICT酪農用）'!$G$4 = \"○\",IF('機械装置入力シート（ICT酪農用）'!E80=0,\"\",'機械装置入力シート（ICT酪農用）'!E80),\"\")","v":""},null,{"$f":"IF('機械装置入力シート（ICT酪農用）'!$G$4 = \"○\",IF('機械装置入力シート（ICT酪農用）'!G80=0,\"\",'機械装置入力シート（ICT酪農用）'!G80),\"\")","v":""},null,{"$f":"IF('機械装置入力シート（ICT酪農用）'!$G$6 = \"○\",IF('機械装置入力シート（ICT酪農用）'!$E92=0,\"\",'機械装置入力シート（ICT酪農用）'!$E92),\"\")","v":""},{"$f":"IF('機械装置入力シート（ICT酪農用）'!$G$6 = \"○\",IF('機械装置入力シート（ICT酪農用）'!$N92=0,\"\",'機械装置入力シート（ICT酪農用）'!$N92),\"\")","v":""},{"$f":"IF('機械装置入力シート（ICT酪農用）'!$G$4 = \"○\",IF('機械装置入力シート（ICT酪農用）'!I80=0,\"\",'機械装置入力シート（ICT酪農用）'!I80),\"\")","v":""},null,{"$f":"IF('機械装置入力シート（ICT酪農用）'!$G$4 = \"○\",IF('機械装置入力シート（ICT酪農用）'!N80=0,\"\",'機械装置入力シート（ICT酪農用）'!N80),\"\")","v":""},null,{"$f":"IF('機械装置入力シート（ICT酪農用）'!S92=0,\"\",'機械装置入力シート（ICT酪農用）'!S92)","v":""}]
[null,null,"消費税額",null,{"$f":"IF('機械装置入力シート（ICT酪農用）'!$G$4 = \"○\",IF('機械装置入力シート（ICT酪農用）'!E81=0,\"\",'機械装置入力シート（ICT酪農用）'!E81),\"\")","v":""},null,{"$f":"IF('機械装置入力シート（ICT酪農用）'!$G$4 = \"○\",IF('機械装置入力シート（ICT酪農用）'!G81=0,\"\",'機械装置入力シート（ICT酪農用）'!G81),\"\")","v":""},null,{"$f":"IF('機械装置入力シート（ICT酪農用）'!$G$6 = \"○\",IF('機械装置入力シート（ICT酪農用）'!$E93=0,\"\",'機械装置入力シート（ICT酪農用）'!$E93),\"\")","v":""},{"$f":"IF('機械装置入力シート（ICT酪農用）'!$G$6 = \"○\",IF('機械装置入力シート（ICT酪農用）'!$N93=0,\"\",'機械装置入力シート（ICT酪農用）'!$N93),\"\")","v":""},{"$f":"IF('機械装置入力シート（ICT酪農用）'!$G$4 = \"○\",IF('機械装置入力シート（ICT酪農用）'!I81=0,\"\",'機械装置入力シート（ICT酪農用）'!I81),\"\")","v":""},null,{"$f":"IF('機械装置入力シート（ICT酪農用）'!$G$4 = \"○\",IF('機械装置入力シート（ICT酪農用）'!N81=0,\"\",'機械装置入力シート（ICT酪農用）'!N81),\"\")","v":""},null,{"$f":"IF('機械装置入力シート（ICT酪農用）'!S93=0,\"\",'機械装置入力シート（ICT酪農用）'!S93)","v":""}]
[]
[]
[]
[null,"３　機械装置の導入方式",null,null,null,null,null,{"$f":"IF('機械装置入力シート（ICT酪農用）'!H98=0,\"\",'機械装置入力シート（ICT酪農用）'!H98)","v":""}]
[]
[]
[]
[null,"４　機械装置導入により想定される労働時間の削減効果"]
[null,"（１）労働負担軽減経営体における削減労働時間",null,null,null,null,null,null,{"$f":"IF('機械装置入力シート（ICT酪農用）'!I103=0,\"\",'機械装置入力シート（ICT酪農用）'!I103)","v":""},"時間"]
[]
[null,"（２）削減労働時間の検証方法",null,null,null,{"$f":"IF('機械装置入力シート（ICT酪農用）'!F105=0,\"\",'機械装置入力シート（ICT酪農用）'!F105)","v":""}]
[]
[]
[]
[null,"５　機械装置の導入に伴う飼養管理の改善への取組"]
[null,null,"（該当する項目に○を付ける）"]
[null,null,"\n１　後継者",null,"①　今後とも安定的な経営継続が見込まれる経営として(1)又は(2)に該当する経営\n(1)主たる経営者が45歳未満\n(2)主たる経営者が45歳以上の場合、後継者となる子息・子女又は概ね15歳以上の後継者の確保",null,null,null,null,{"$f":"IF('機械装置入力シート（ICT酪農用）'!J111=0,\"\",'機械装置入力シート（ICT酪農用）'!J111)","v":""}]
[null,null,null,null,"②　①に該当しない場合、後継者の確保に向けた取組の実施",null,null,null,null,{"$f":"IF('機械装置入力シート（ICT酪農用）'!J112=0,\"\",'機械装置入力シート（ICT酪農用）'!J112)","v":""}]
[null,null,"２　乳用後継牛",null,"①　自家の牛群更新に必要な乳用牛を概ね自家生産により確保する経営",null,null,null,null,{"$f":"IF('機械装置入力シート（ICT酪農用）'!J113=0,\"\",'機械装置入力シート（ICT酪農用）'!J113)","v":""}]
[null,null,null,null,"②　①以外の場合、自家の牛群更新に必要な乳用牛の自家生産に取り組む経営",null,null,null,null,{"$f":"IF('機械装置入力シート（ICT酪農用）'!J114=0,\"\",'機械装置入力シート（ICT酪農用）'!J114)","v":""}]
[null,null,"３　飼養管理",null,"飼養管理の高度化に取り組む経営",null,null,null,null,{"$f":"IF('機械装置入力シート（ICT酪農用）'!J115=0,\"\",'機械装置入力シート（ICT酪農用）'!J115)","v":""}]
[null,null,"３　その他",null,"①　地震・台風等の災害等に備えた、地域における互助協定に参加する経営",null,null,null,null,{"$f":"IF('機械装置入力シート（ICT酪農用）'!J116=0,\"\",'機械装置入力シート（ICT酪農用）'!J116)","v":""}]
[null,null,"（複数回答可）",null,"②　畜産（酪農）従事者の疾病時等の経営継続に備えた、地域における互助協定に参加する経営",null,null,null,null,{"$f":"IF('機械装置入力シート（ICT酪農用）'!J117=0,\"\",'機械装置入力シート（ICT酪農用）'!J117)","v":""}]
[null,null,null,null,"③　地震・台風等により被災した経営",null,null,null,null,{"$f":"IF('機械装置入力シート（ICT酪農用）'!J118=0,\"\",'機械装置入力シート（ICT酪農用）'!J118)","v":""}]
[null,null,null,null,"④　畜産・酪農収益力強化整備等特別対策事業による補助を受けていない経営",null,null,null,null,{"$f":"IF('機械装置入力シート（ICT酪農用）'!J119=0,\"\",'機械装置入力シート（ICT酪農用）'!J119)","v":""}]
[null,null,null,null,"⑤　牛群検定に加入している経営",null,null,null,null,{"$f":"IF('機械装置入力シート（ICT酪農用）'!J120=0,\"\",'機械装置入力シート（ICT酪農用）'!J120)","v":""}]
[null,null,null,null,"⑥　供用期間の延長等を図るため、自給飼料の飼料分析や技術者との意見交換を定期的に行う経営",null,null,null,null,{"$f":"IF('機械装置入力シート（ICT酪農用）'!J121=0,\"\",'機械装置入力シート（ICT酪農用）'!J121)","v":""}]
[null,null,null,null,"⑦　応援会議の構成員の中で、\nJGAP家畜・畜産物の認証農場又は、GAP取得チャレンジシステムの確認済み農場がある場合",null,null,null,null,{"$f":"IF('機械装置入力シート（ICT酪農用）'!J122=0,\"\",'機械装置入力シート（ICT酪農用）'!J122)","v":""}]
[null,null,null,null,"⑧　応援会議の構成員の中で、農場HACCP推進農場として指定される経営がある場合",null,null,null,null,{"$f":"IF('機械装置入力シート（ICT酪農用）'!J123=0,\"\",'機械装置入力シート（ICT酪農用）'!J123)","v":""}]
[null,null,null,null,"⑨　環境と調和のとれた食料システムの確立のための環境負荷低減事業活動の促進等に関する法律（令和４年法律第 37 号。）に基づく環境負荷低減事業活動実施計画又は特定環境負荷低減事業活動実施計画の認定を受けている経営",null,null,null,null,{"$f":"IF('機械装置入力シート（ICT酪農用）'!J124=0,\"\",'機械装置入力シート（ICT酪農用）'!J124)","v":""}]
[null,null,null,null,"⑩　作業安全に関する取組を実施している経営",null,null,null,null,{"$f":"IF('機械装置入力シート（ICT酪農用）'!J125=0,\"\",'機械装置入力シート（ICT酪農用）'!J125)","v":""}]
[null,null,null,null,"⑪　その他、地域への貢献度が高い取組と事業\n　実施主体が特に認めた取組に参加する経営",null,null,null,null,{"$f":"IF('機械装置入力シート（ICT酪農用）'!J126=0,\"\",'機械装置入力シート（ICT酪農用）'!J126)","v":""}]
[]
[null,"６　労働時間削減効果分析の結果",null,null,null,null,null,null,{"$f":"IF('機械装置入力シート（ICT酪農用）'!Q128=0,\"\",'機械装置入力シート（ICT酪農用）'!Q128)","v":""}]
[]
[]
[null,"【添付書類】"]
[null,null,"（１）申請する補助対象機械装置の一般競争入札の場合は入札結果を証する書面及び"]
[null,null,"　見積書（写し）、見積もり合わせの場合は三者以上の見積書（写し）"]
[null,null,"（２）申請する補助対象機械装置のカタログ"]
[null,null,"（３）５の回答根拠を示す資料"]
[null,null,"（４）購入方式を選択した場合、以下のいずれかに該当する書類\n　　（Iの第1の12の（３）のア関係）"]
[null,null,"　　・災害時における地域の互助協定に関する締結書類（写し）"]
[null,null,"　　・疾病時等における地域の互助協定に関する締結書類（写し）"]
[null,null,"（５）みどりのチェックシート"]
[null,null,"（６）配合飼料価格安定制度に加入していることが分かる資料（加入していない場合はその理由書）"]
[null,null,"（７）農業協同組合又は農業協同組合連合会が、自ら家畜の飼養を行う場合、\n　農業協同組合法第11条の51の規定に係る農業経営規程（写し）"]
[]
[]
[]
[null,"補助金及び要望調査に関する確認書"]
[]
[]
[null,"　本事業の要望に当たり、交付要綱、実施要綱、実施要綱別紙等をよく読み内容を理解しました。"]
[null,"　特に、次の事項に対し、相違があった場合は、事業参加承認後であっても補助金の一部もし"]
[null,"くは全部を受給できなくなり、または補助金の支払後においては補助金の一部もしくは全部を"]
[null,"返還することを承諾のうえ、要望します。"]
[]
[null,"１　補助金に関係する全ての提出書類において、如何なる理由があってもその内容に虚偽の記"]
[null,"　載は行いません。"]
[]
[null,"２　一般競争入札又は３者以上の見積もりによる補助対象機械装置の最低価格を補助対象経費"]
[null,"　として申請します。また、補助対象経費は補助対象機械装置の本体価格のみであり、それ以"]
[null,"　外の経費を混同していません。"]
[]
[null,"３　既に所有している機械装置を下取りさせて機械装置を導入する場合は、導入する機械装置"]
[null,"　の本体価格から当該機械装置の下取り価格を控除した額を補助対象経費として申請します。"]
[]
[null,"４　事業実施主体が事業参加申請を承認する以前に、既に発注等を行った場合は補助金の交付"]
[null,"　対象とならないことを承諾します。また、導入方式の場合は、補助金の支払いは、機械装置"]
[null,"　の導入、支払い及び所有権の移転が完了し、実績報告書を提出した後一定期間を要すること"]
[null,"　を承諾します。"]
[]
[null,"５　補助事業により取得した機械装置を、処分制限期間内に処分しようとするときは、事前に"]
[null,"　処分内容等について事業実施主体の承認を受けます。また、その際、補助金の返還が発生す"]
[null,"　る場合があることを承諾します。"]
[]
[null,{"$f":"IF('機械装置入力シート（ICT酪農用）'!I16=0,\"\",'機械装置入力シート（ICT酪農用）'!I16)","v":""}]
[null,{"$f":"IF('機械装置入力シート（ICT酪農用）'!I21=0,\"\",'機械装置入力シート（ICT酪農用）'!I21)","v":""}]
[null,{"$f":"IF('機械装置入力シート（ICT酪農用）'!I22<>\"\",'機械装置入力シート（ICT酪農用）'!I22 & \" \" & '機械装置入力シート（ICT酪農用）'!I23 & \"\",\"\")","v":""}]
[]
[null,"※　下取り機械装置の補助事業等の取扱いは、「補助事業等における生産の取扱いについて」（昭和57年10月26日"]
[null,"　付け57経第1702号）による。"]
[null,"※　処分制限期間：導入した機械装置の耐用年数をいう。"]
[null,"※　処分とは、補助金の交付目的に反して使用し、譲渡し、交換し、貸し付け、廃棄し、又は担保に供することをいう。"]
[null,"※　耐用年数は、「減価償却資産の耐用年数に関する省令」（昭和40年3月31日付け大蔵省令第15号）に準ずる。"]

{"sheet":"まとめシート（ICT 別添6）","index":2,"n_rows":25,"n_cols":80,"rows_kept":25,"cut":false,"hidden":false,"merged":[[23,53,23,56],[23,57,23,60],[23,61,23,66],[23,67,23,69],[24,35,24,37],[24,38,24,40],[24,41,24,42],[24,43,24,45],[24,46,24,48],[24,49,24,52],[23,35,23,37],[23,38,23,40],[23,41,23,42],[23,43,23,45],[23,46,23,48],[23,49,23,52],[23,1,23,2],[23,3,23,10],[23,11,23,17],[23,18,23,24],[23,25,23,31],[23,32,23,34],[22,35,22,37],[22,38,22,40],[22,41,22,42],[21,57,21,60],[21,61,21,66],[21,67,21,69],[22,1,22,2],[22,3,22,10],[22,11,22,17],[22,18,22,24],[22,25,22,31],[22,32,22,34],[21,35,21,37],[21,38,21,40],[21,41,21,42],[21,43,21,45],[21,46,21,48],[21,49,21,52],[22,53,22,56],[22,57,22,60],[22,61,22,66],[22,67,22,69],[22,43,22,45],[22,46,22,48],[22,49,22,52],[21,1,21,2],[21,3,21,10],[21,11,21,17],[21,18,21,24],[21,25,21,31],[21,32,21,34],[20,35,20,37],[20,38,20,40],[20,41,20,42],[19,53,19,56],[19,11,19,17],[19,18,19,24],[19,25,19,31],[19,32,19,34],[21,53,21,56],[19,57,19,60],[19,61,19,66],[19,67,19,69],[20,1,20,2],[20,3,20,10],[20,11,20,17],[20,18,20,24],[20,25,20,31],[20,32,20,34],[19,35,19,37],[19,38,19,40],[19,41,19,42],[19,43,19,45],[19,46,19,48],[19,49,19,52],[20,53,20,56],[20,57,20,60],[20,61,20,66],[20,67,20,69],[20,43,20,45],[20,46,20,48],[20,49,20,52],[19,1,19,2],[19,3,19,10],[17,53,17,56],[17,57,17,60],[17,61,17,66],[17,67,17,69],[18,1,18,2],[18,3,18,10],[18,11,18,17],[18,18,18,24],[18,25,18,31],[18,32,18,34],[17,35,17,37],[17,38,17,40],[17,41,17,42],[17,43,17,45],[17,46,17,48],[17,49,17,52],[18,53,18,56],[18,57,18,60],[18,61,18,66],[18,67,18,69],[18,43,18,45],[18,46,18,48],[18,49,18,52],[17,1,17,2],[17,3,17,10],[17,11,17,17],[17,18,17,24],[17,25,17,31],[17,32,17,34],[16,35,16,37],[16,38,16,40],[16,41,16,42],[18,35,18,37],[18,38,18,40],[18,41,18,42],[15,57,15,60],[15,61,15,66],[15,67,15,69],[16,1,16,2],[16,3,16,10],[16,11,16,17],[16,18,16,24],[16,25,16,31],[16,32,16,34],[15,35,15,37],[15,38,15,40],[15,41,15,42],[15,43,15,45],[15,46,15,48],[15,49,15,52],[16,53,16,56],[16,57,16,60],[16,61,16,66],[16,67,16,69],[16,43,16,45],[16,46,16,48],[16,49,16,52],[15,1,15,2],[15,3,15,10],[15,11,15,17],[15,18,15,24],[15,25,15,31],[15,32,15,34],[14,35,14,37],[14,38,14,40],[14,41,14,42],[13,53,13,56],[13,11,13,17],[13,18,13,24],[13,25,13,31],[13,32,13,34],[15,53,15,56],[13,57,13,60],[13,61,13,66],[13,67,13,69],[14,1,14,2],[14,3,14,10],[14,11,14,17],[14,18,14,24],[14,25,14,31],[14,32,14,34],[13,35,13,37],[13,38,13,40],[13,41,13,42],[13,43,13,45],[13,46,13,48],[13,49,13,52],[14,53,14,56],[14,57,14,60],[14,61,14,66],[14,67,14,69],[14,43,14,45],[14,46,14,48],[14,49,14,52],[13,1,13,2],[13,3,13,10],[11,1,11,2],[11,3,11,10],[11,11,11,17],[11,18,11,24],[11,25,11,31],[11,32,11,34],[12,35,12,37],[12,38,12,40],[12,41,12,42],[12,1,12,2],[12,3,12,10],[12,11,12,17],[12,18,12,24],[12,25,12,31],[12,32,12,34],[11,35,11,37],[11,38,11,40],[11,41,11,42],[10,53,10,56],[10,57,10,60],[10,61,10,66],[10,67,10,69],[10,43,10,45],[10,46,10,48],[12,43,12,45],[12,46,12,48],[12,49,12,52],[10,49,10,52],[11,53,11,56],[11,57,11,60],[11,61,11,66],[11,67,11,69],[11,43,11,45],[11,46,11,48],[11,49,11,52],[12,53,12,56],[12,57,12,60],[12,61,12,66],[12,67,12,69],[8,25,8,31],[8,32,8,34],[9,53,9,56],[9,57,9,60],[9,61,9,66],[9,67,9,69],[9,43,9,45],[9,46,9,48],[9,49,9,52],[10,1,10,2],[10,3,10,10],[10,11,10,17],[10,18,10,24],[10,25,10,31],[10,32,10,34],[9,35,9,37],[9,38,9,40],[9,41,9,42],[10,35,10,37],[10,38,10,40],[10,41,10,42],[5,61,7,66],[5,67,7,69],[5,71,7,71],[5,72,7,72],[8,53,8,56],[8,57,8,60],[8,61,8,66],[8,67,8,69],[9,1,9,2],[9,3,9,10],[9,11,9,17],[9,18,9,24],[9,25,9,31],[9,32,9,34],[8,35,8,37],[8,38,8,40],[8,41,8,42],[8,43,8,45],[8,46,8,48],[8,49,8,52],[8,1,8,2],[8,3,8,10],[8,11,8,17],[8,18,8,24],[3,3,3,4],[5,1,7,2],[5,3,7,10],[5,11,7,17],[5,18,5,37],[5,38,5,52],[5,79,7,79],[6,18,7,24],[6,25,7,31],[6,32,7,34],[6,35,7,37],[6,38,7,40],[6,41,7,42],[6,43,7,45],[6,46,7,48],[6,49,7,52],[5,73,7,73],[5,74,7,74],[5,75,7,75],[5,76,7,76],[5,77,7,77],[5,78,7,78],[5,53,7,56],[5,57,7,60]]}
[]
[null,"別添６（Iの第2の2関係）　転記用シート",null,null,null,null,null,null,null,null,null,null,null,null,null,null,"※機械装置入力シートの「転記」ボタンを押下してください。"]
[]
[null,"令和",null,6,null,"年度ICT化等機械装置等導入事業　参加要望書",null,null,null,null,null,null,null,null,null,null,null,null,null,null,null,null,null,null,null,null,null,null,null,null,null,null,null,"転記用シート"]
[]
[null,"優先順位",null,"畜産ICT応援会議の名称",null,null,null,null,null,null,null,"労働負担軽減\n経営体名",null,null,null,null,null,null,"補助対象機械装置",null,null,null,null,null,null,null,null,null,null,null,null,null,null,null,null,null,null,null,"機械装置価格、補助金額等",null,null,null,null,null,null,null,null,null,null,null,null,null,null,"成果目標値",null,null,null,"労働時間削減効果分析の結果",null,null,null,"検証方法",null,null,null,null,null,"備考",null,null,null,"県名","申込日","県名","県内応援会議番号","経産牛\n頭数","導入方式","総労働時間","削減労働時間","作業人員"]
[null,null,null,null,null,null,null,null,null,null,null,null,null,null,null,null,null,null,"機械装置の区分",null,null,null,null,null,null,"機械装置名",null,null,null,null,null,null,"カタログページ",null,null,"数量",null,null,"機械\n価格\nA",null,null,"消費税\nB",null,"計\n(A+B)",null,null,"補助率",null,null,"補助金額\n(A×1/2以内)"]
[]
[]
[]
[]
[]
[]
[]
[]
[]
[]
[]
[]
[]
[]
[]
[]
[]
[null,null,null,null,null,null,null,null,null,null,null,null,null,null,null,null,null,null,null,null,null,null,null,null,null,null,null,null,null,null,null,null,null,null,null,"合計"]

{"sheet":"項目リスト","index":3,"n_rows":234,"n_cols":16,"rows_kept":234,"cut":false,"hidden":false,"merged":[]}
["VersionDate 2024/4/18"]
["県CD","県名","記号","導入方式","機械装置の区分","転記用の名称","入力シートでの名称","機械装置名","1頭あたりの時間","区分","値","応援会議\n県","応援会議\nコード","応援会議名","応援会議代表名","パーラー方式"]
[1,"北海道",null,null,"搾乳関係機械装置",null,null,null,null,"１　後継者①",0.9,"01","001","きたそらち畜産協議会","会長　藤川　豊","へリングボーン"]
[2,"青森県","○","リース方式","搾乳関係機械装置",null,null,"バケット及びパイプライン方式（自動離脱装置なし）",48,"１　後継者②",0.95,"01","002","そらち南酪農協議会","会長　権平　敬保","パラレル"]
[3,"岩手県",null,"購入方式","搾乳関係機械装置","ミルカー自動離脱装置","ミルカー自動離脱装置","バケット及びパイプライン方式（自動離脱装置あり）",40,"２　乳用後継牛①",0.9,"01","003","石狩北部地域畜産クラスター推進協議会","会長　山本　裕康","ロータリー"]
[4,"宮城県",null,null,"搾乳関係機械装置","搾乳ユニット搬送レール手動","搾乳ユニット搬送レール手動","搾乳ユニット手動搬送方式（自動離脱装置なし）",46,"２　乳用後継牛②",0.95,"01","004","道央地域畜産クラスター推進協議会","会長　岩田　宏彦","アブレスト"]
[5,"秋田県",null,null,"搾乳関係機械装置","搾乳ユニット搬送レール手動","搾乳ユニット搬送レール手動","搾乳ユニット手動搬送方式（自動離脱装置あり）",38,"３　飼養管理",0.9,"01","005","ようてい広域畜産クラスター協議会","会長　高倉　正志","タンデム"]
[6,"山形県",null,null,"搾乳関係機械装置","搾乳ユニット搬送レール自動","搾乳ユニット搬送レール自動","搾乳ユニット自動搬送方式",34,"３　その他①",0.95,"01","006","とまこまい広域畜産クラスター協議会","会長　宮田　広幸"]
[7,"福島県",null,null,"搾乳関係機械装置","ミルキングパーラー","ミルキングパーラー","ミルキングパーラー方式（自動離脱装置なし）",42,"３　その他②",0.95,"01","007","ＪＡ伊達市畜産クラスター協議会","会長　佐藤　哲"]
[8,"茨城県",null,null,"搾乳関係機械装置","ミルキングパーラー","ミルキングパーラー","ミルキングパーラー方式（自動離脱装置あり）",34,"３　その他③",0.9,"01","008","びらとり畜産クラスター協議会","会長　加藤　三明"]
[9,"栃木県",null,null,"搾乳関係機械装置","搾乳ロボット","搾乳ロボット","搾乳ロボット方式",7,"３　その他④",0.95,"01","009","新冠町酪農振興会","会長　佐藤　学"]
[10,"群馬県",null,null,"搾乳関係機械装置",null,null,"人力による乳頭洗浄",8,"３　その他⑤",0.9,"01","010","静内酪農振興会","会長　佐藤　学"]
[11,"埼玉県",null,null,"搾乳関係機械装置","自動乳頭洗浄機","自動乳頭洗浄機","自動乳頭洗浄機",6,"３　その他⑥",0.95,"01","011","七飯町酪農組合","組合長　山川　明"]
[12,"千葉県",null,null,"飼料給与関係機械装置",null,null,"人力による給餌方式",43,"３　その他⑦",0.95,"01","012","八雲町畜産クラスター協議会","会長　舟田　進一"]
[13,"東京都",null,null,"飼料給与関係機械装置","餌寄せロボット","餌寄せロボット","自動餌寄せ方式",40,"３　その他⑧",0.95,"01","013","森酪農生産部会","部会長　石岡　浩"]
[14,"神奈川県",null,null,"飼料給与関係機械装置","自動給餌機（濃厚飼料）","自動給餌機（濃厚飼料）","自動給餌方式（濃厚飼料）",16,"３　その他⑨",0.9,"01","014","若松・瀬棚地区畜産クラスター協議会","会長　石立　浩"]
[15,"新潟県",null,null,"飼料給与関係機械装置",null,null,"自動給餌+自動餌寄せ方式（濃厚飼料）",13,"３　その他⑩",0.9,"01","015","北檜山地区畜産クラスター協議会","会長　大津　良夫"]
[16,"富山県",null,null,"飼料給与関係機械装置","自動給餌機（濃厚・粗飼料）","自動給餌機（濃厚・粗飼料）","自動給餌方式（濃厚・粗飼料）",14,"３　その他⑪",0.9,"01","016","今金町楽酪応援会議","会長　仁木　明"]
[17,"石川県",null,null,"飼料給与関係機械装置",null,null,"自動給餌+自動餌寄せ方式（濃厚・粗飼料）",11,null,null,"01","017","ふらの沿線地域畜産クラスター協議会","会長　川上　勝義"]
[18,"福井県",null,null,"飼料給与関係機械装置","自走式配餌車","自走式配餌車","自走式配餌車",37,null,null,"01","018","北ひびき酪農振興協議会","会長　山下　英紀"]
[19,"山梨県",null,null,"飼料給与関係機械装置",null,null,"自走式配餌＋自動餌寄せ方式",34,null,null,"01","019","名寄市楽酪応援会議","会長　佐藤　信明"]
[20,"長野県",null,null,"飼料給与関係機械装置",null,null,null,null,null,null,"01","020","美瑛町楽酪応援会議","会長　稲川　利昭"]
[21,"岐阜県",null,null,"飼料給与関係機械装置","稲わら細断機","稲わら細断機","稲わら細断機による細断",null,null,null,"01","021","北はるか楽酪応援協議会","会長　竹本　学"]
[22,"静岡県",null,null,"飼料給与関係機械装置",null,null,"人力によるほ乳方式",3,null,null,"01","022","天塩町営農担い手協議会","会長　佐々木　裕之"]
[23,"愛知県",null,null,"飼料給与関係機械装置","ほ乳ロボット","ほ乳ロボット（据置式・レール式）","ほ乳ロボット方式",0,null,null,"01","023","稚内市畜産クラスター協議会","会長　工藤　広"]
[24,"三重県",null,null,"飼料給与関係機械装置","ほ乳ロボット（レール式）","ほ乳ロボット（カーフレール式）","ほ乳ロボット方式（カーフレール式）",0,null,null,"01","024","ＪＡひがし宗谷畜産クラスター猿払協議会","会長　仲野　信之"]
[25,"滋賀県",null,null,"飼料給与関係機械装置","移動式ほ乳機","移動式ほ乳機","移動式ほ乳機方式",2,null,null,"01","025","枝幸町畜産クラスター協議会","会長　向井地　信之"]
[26,"京都府",null,null,"家畜飼養管理機械装置",null,null,"人力による観察方式",14,null,null,"01","026","ＪＡひがし宗谷畜産クラスター浜頓別協議会","会長　田中　功悦"]
[27,"大阪府",null,null,"家畜飼養管理機械装置","発情発見装置","発情発見装置","発情発見装置の活用",12,null,null,"01","027","幌延町畜産クラスター協議会","会長　野々村 仁"]
[28,"兵庫県",null,null,"家畜飼養管理機械装置","分娩監視装置","分娩監視装置","分娩監視装置の活用",13,null,null,"01","028","豊富町畜産クラスター協議会","会長　河田　誠一"]
[29,"奈良県",null,null,"家畜飼養管理機械装置","行動監視装置（繁殖）","行動監視装置（繁殖）","行動監視装置（繁殖）の活用",13,null,null,"01","029","中頓別町畜産クラスター協議会","会長　姉歯　義宣"]
[30,"和歌山県",null,null,"家畜飼養管理機械装置",null,null,"発情発見装置＋分娩監視装置の活用",11,null,null,"01","030","網走市畜産クラスター協議会","会長　熊谷　満浩"]
[31,"鳥取県",null,null,"家畜飼養管理機械装置",null,null,"発情発見装置＋行動監視装置（繁殖）の活用",11,null,null,"01","031","北見市きたみらい地区畜産クラスター協議会","会長　上野　元一"]
[32,"島根県",null,null,"家畜飼養管理機械装置",null,null,"ホイールローダー等自動除糞機によらない除糞",5,null,null,"01","032","北見市ところ地区畜産クラスター協議会","会長　河野　光伸"]
[33,"岡山県",null,null,"家畜飼養管理機械装置","バーンスクレーパー","バーンスクレーパー","バーンスクレーパーによる除糞",0,null,null,"01","033","大空町東藻琴地区畜産クラスター協議会","会長　　西　克栄"]
[34,"広島県",null,null,"家畜飼養管理機械装置",null,null,"人力による敷料散布",3,null,null,"01","034","斜里町畜産クラスター協議会","会長　山内　浩彰"]
[35,"山口県",null,null,"家畜飼養管理機械装置","敷料散布機","敷料散布機","敷料散布機による敷料散布",0,null,null,"01","035","小清水町畜産クラスター協議会","会長　久保　弘志"]
[36,"徳島県",null,null,"家畜飼養管理機械装置",null,null,"人力による観察方式",5,null,null,"01","036","訓子府地区畜産クラスター協議会","会長　渡辺　克夫"]
[37,"香川県",null,null,"家畜飼養管理機械装置","行動監視装置","行動監視装置","行動監視装置の活用",3,null,null,"01","037","置戸地区畜産クラスター協議会","会長　倉本　秀樹"]
[38,"愛媛県",null,null,"家畜飼養管理機械装置",null,null,"人力による管理方式",9,null,null,"01","038","佐呂間町畜産クラスター協議会","会長　武田　温友"]
[39,"高知県",null,null,"家畜飼養管理機械装置","行動監視装置（放牧）","行動監視装置（放牧）","行動監視装置（放牧）の活用",7,null,null,"01","039","えんゆう農協酪農専門部会","部会長　緑川　将仁"]
[40,"福岡県",null,null,"家畜飼養管理機械装置",null,null,"ホイールローダー等自動除糞機によらない除糞",null,null,null,"01","040","湧別町農協楽酪応援会議","会長　上田　範幸"]
[41,"佐賀県",null,null,"家畜飼養管理機械装置","バーンクリーナー","バーンクリーナー","バーンクリーナーによる除糞",null,null,null,"01","041","北オホーツク楽酪応援会議","会長　吉田　隆好"]
[42,"長崎県",null,null,null,null,null,null,null,null,null,"01","042","オホーツクはまなす楽酪応援会議","会長　永峰　勝利"]
[43,"熊本県",null,null,null,null,null,null,null,null,null,"01","043","新得町畜産クラスター協議会","会長　浜田　正利"]
[44,"大分県",null,null,null,null,null,null,null,null,null,"01","044","中札内村酪農クラスター協議会","会長　水崎　勝秀"]
[45,"宮崎県",null,null,null,null,null,null,null,null,null,"01","045","大樹町生花晩成地区酪農畜産クラスター協議会","会長　酒森　正人"]
[46,"鹿児島県",null,null,null,null,null,null,null,null,null,"01","046","陸別町酪農・畜産クラスター協議会","会長　西岡　悦夫"]
[47,"沖縄県",null,null,null,null,null,null,null,null,null,"01","047","帯広市川西畜産クラスター協議会","会長　池守　康浩"]
[null,null,null,null,null,null,null,null,null,null,null,"01","048","帯広大正畜産クラスター協議会","会長　池守　康浩"]
[null,null,null,null,null,null,null,null,null,null,null,"01","049","音更町畜産クラスター協議会","会長　井原　愛啓"]
[null,null,null,null,null,null,null,null,null,null,null,"01","050","士幌町酪農・畜産クラスター協議会","会長　高木　康弘"]
[null,null,null,null,null,null,null,null,null,null,null,"01","051","上士幌町地域資源利活用推進協議会","会長　小椋　茂敏"]
[null,null,null,null,null,null,null,null,null,null,null,"01","052","鹿追町クラスター協議会","会長　喜井　知己"]
[null,null,null,null,null,null,null,null,null,null,null,"01","053","清水町地域畜産振興クラスター協議会","会長　阿部　一男"]
[null,null,null,null,null,null,null,null,null,null,null,"01","054","更別村酪農・畜産クラスター協議会","会長　西山　猛"]
[null,null,null,null,null,null,null,null,null,null,null,"01","055","大樹町大樹地区酪農畜産クラスター協議会","会長　黒川　豊"]
[null,null,null,null,null,null,null,null,null,null,null,"01","056","広尾町農業クラスター協議会","会長　松山　孝三"]
[null,null,null,null,null,null,null,null,null,null,null,"01","057","幕別町幕別札内地区畜産クラスター協議会","会長　高橋　修二"]
[null,null,null,null,null,null,null,null,null,null,null,"01","058","幕別町忠類地区畜産クラスター協議会","会長　半田　健"]
[null,null,null,null,null,null,null,null,null,null,null,"01","059","池田町畜産クラスター協議会","会長 池田町長 安井　美裕"]
[null,null,null,null,null,null,null,null,null,null,null,"01","060","本別町畜産クラスター協議会","会長　菊池　敦"]
[null,null,null,null,null,null,null,null,null,null,null,"01","061","足寄町畜産クラスター協議会","会長　村田　善映"]
[null,null,null,null,null,null,null,null,null,null,null,"01","062","浦幌町畜産クラスター協議会","会長　岡崎　史彦"]
[null,null,null,null,null,null,null,null,null,null,null,"01","063","豊頃町酪農・畜産クラスター協議会","会長　宮口　孝"]
[null,null,null,null,null,null,null,null,null,null,null,"01","064","釧路太田畜産クラスター協議会","会長　福井　好三"]
[null,null,null,null,null,null,null,null,null,null,null,"01","065","浜中町地域担い手育成総合支援協議会","代表　齋藤　清隆"]
[null,null,null,null,null,null,null,null,null,null,null,"01","066","標茶町畜産強化協議会","会長　佐藤　千洋"]
[null,null,null,null,null,null,null,null,null,null,null,"01","067","弟子屈町畜産クラスター協議会","会長　川口　覚"]
[null,null,null,null,null,null,null,null,null,null,null,"01","068","鶴居村畜産クラスター協議会","会長　折笠　文則"]
[null,null,null,null,null,null,null,null,null,null,null,"01","069","白糠町畜産クラスター協議会","会長　對木　範誉"]
[null,null,null,null,null,null,null,null,null,null,null,"01","070","音別町畜産クラスター協議会","会長　志賀　忠浩"]
[null,null,null,null,null,null,null,null,null,null,null,"01","071","阿寒畜産クラスター協議会","会長　野村　宏"]
[null,null,null,null,null,null,null,null,null,null,null,"01","072","道東あさひ畜産クラスター協議会","会長　田中　博行"]
[null,null,null,null,null,null,null,null,null,null,null,"01","073","けねべつ地域畜産クラスター協議会","会長　北村　篤"]
[null,null,null,null,null,null,null,null,null,null,null,"01","074","中標津町農協畜産クラスター協議会","会長　飯島　浩"]
[null,null,null,null,null,null,null,null,null,null,null,"01","075","ＪＡ標津地区畜産クラスター協議会","会長　吉田　孝一"]
[null,null,null,null,null,null,null,null,null,null,null,"01","076","中春別地域畜産クラスター協議会","会長　望月　英彦"]
[null,null,null,null,null,null,null,null,null,null,null,"01","077","中春別中山畜産クラスター推進協議会","会長　中山　勝志"]
[null,null,null,null,null,null,null,null,null,null,null,"01","078","いわみざわ農協酪農部会","会長　"]
[null,null,null,null,null,null,null,null,null,null,null,"01","079","みついし酪農振興会","会長　"]
[null,null,null,null,null,null,null,null,null,null,null,"01","080","日高東部地区畜産振興協議会","会長　笹島　政信"]
[null,null,null,null,null,null,null,null,null,null,null,"01","081","ＪＡ新はこだて酪農生産部会　北斗支部","会長　"]
[null,null,null,null,null,null,null,null,null,null,null,"01","082","長万部町地域畜産クラスター協議会","会長　"]
[null,null,null,null,null,null,null,null,null,null,null,"01","083","遠別町畜産クラスター協議会","会長　佐久間　英一"]
[null,null,null,null,null,null,null,null,null,null,null,"01","084","清里町酪農組合","組合長　"]
[null,null,null,null,null,null,null,null,null,null,null,"01","085","初山別村畜産クラスター協議会","会長　"]
[null,null,null,null,null,null,null,null,null,null,null,"01","086","芽室町畜産クラスター協議会","会長　佐々木　快治"]
[null,null,null,null,null,null,null,null,null,null,null,"01","087","大空町女満別地区畜産クラスター協議会","会長　"]
[null,null,null,null,null,null,null,null,null,null,null,"01","088","月形町和牛振興協議会","会長　若槻　和希"]
[null,null,null,null,null,null,null,null,null,null,null,"01","089","新冠町和牛生産改良組合","組合長　川筋　克幸"]
[null,null,null,null,null,null,null,null,null,null,null,"01","090","みついし和牛生産改良組合","組合長　三和　忠雄"]
[null,null,null,null,null,null,null,null,null,null,null,"01","091","ＪＡたいせつICT・楽酪応援会議","会長　成田　正夫"]
[null,null,null,null,null,null,null,null,null,null,null,"01","092","美幌町畜産クラスター協議会","会長　"]
[null,null,null,null,null,null,null,null,null,null,null,"01","093","長沼町地域畜産クラスター協議会","会長　"]
[null,null,null,null,null,null,null,null,null,null,null,"01","094","ピンネ畜産クラスター協議会","会長　荒山　直人"]
[null,null,null,null,null,null,null,null,null,null,null,"01","095","たきかわ畜産クラスター協議会","会長　小川 潤一"]
[null,null,null,null,null,null,null,null,null,null,null,"01","096","清里町和牛生産改良組合","組合長  橋本　秀一"]
[null,null,null,null,null,null,null,null,null,null,null,"02","001","ＪＡ十和田おいらせ楽酪応援会議","会長　松浦　真"]
[null,null,null,null,null,null,null,null,null,null,null,"02","002","ゆうき青森畜産ＩＣＴ応援会議","会長　本間　健一"]
[null,null,null,null,null,null,null,null,null,null,null,"03","001","岩手花平楽酪応援会議","会長　土井　修一"]
[null,null,null,null,null,null,null,null,null,null,null,"03","002","岩中酪県南地区畜産クラスター協議会","会長　高橋　浩運"]
[null,null,null,null,null,null,null,null,null,null,null,"03","003","岩中酪滝沢・玉山地区畜産クラスター協議会","会長　高橋　浩運"]
[null,null,null,null,null,null,null,null,null,null,null,"03","004","岩中酪北岩手・八幡平地区畜産クラスター協議会","会長　高橋　浩運"]
[null,null,null,null,null,null,null,null,null,null,null,"03","005","岩手ふるさと楽酪応援会議","会長　横尾　まき子"]
[null,null,null,null,null,null,null,null,null,null,null,"03","006","奥中山楽酪応援会議","会長　"]
[null,null,null,null,null,null,null,null,null,null,null,"03","007","南部地域楽酪応援会議","会長　"]
[null,null,null,null,null,null,null,null,null,null,null,"03","008","くじ楽酪応援会議","会長　石羽根　忠志"]
[null,null,null,null,null,null,null,null,null,null,null,"03","009","いわて平泉楽酪応援会議","会長　"]
[null,null,null,null,null,null,null,null,null,null,null,"03","010","岩泉町畜産クラスター協議会","会長　中居　健一"]
[null,null,null,null,null,null,null,null,null,null,null,"04","001","宮城酪農畜産クラスター協議会楽酪応援会議","会長　一篠　光"]
[null,null,null,null,null,null,null,null,null,null,null,"04","002","みやぎの酪農協畜産クラスター協議会","会長　伊藤　一成"]
[null,null,null,null,null,null,null,null,null,null,null,"04","003","加美よつば楽酪応援会議","会長　高橋　真"]
[null,null,null,null,null,null,null,null,null,null,null,"04","004","いしのまき楽酪応援会議","会長　武山　吉一"]
[null,null,null,null,null,null,null,null,null,null,null,"05","001","秋田県楽酪応援会議","会長　武藤　隆繁"]
[null,null,null,null,null,null,null,null,null,null,null,"05","002","秋田おばこ畜産ICT応援会議","会長　細谷　精悦"]
[null,null,null,null,null,null,null,null,null,null,null,"06","001","山酪楽酪応援会議","会長　山口　長一"]
[null,null,null,null,null,null,null,null,null,null,null,"06","002","山形農業協同組合楽酪会","会長　渡辺　雄大"]
[null,null,null,null,null,null,null,null,null,null,null,"06","003","飯豊町畜産ICT応援会","代表者　竹田　辰秀"]
[null,null,null,null,null,null,null,null,null,null,null,"07","001","福島県楽酪応援会議","会長　宗像　実"]
[null,null,null,null,null,null,null,null,null,null,null,"07","002","ＪＡグループ福島地域楽酪応援会議","会長　浅川　通"]
[null,null,null,null,null,null,null,null,null,null,null,"08","001","茨城県楽酪応援協議会","会長　朝倉　実行"]
[null,null,null,null,null,null,null,null,null,null,null,"08","002","茨城県肉用牛生産者協会","会長　橋本　武二"]
[null,null,null,null,null,null,null,null,null,null,null,"08","003","高萩地区畜産ICT応援会議","会議長　鈴木　一郎"]
[null,null,null,null,null,null,null,null,null,null,null,"09","001","酪農とちぎ楽酪応援会議","会長　臼井　勉"]
[null,null,null,null,null,null,null,null,null,null,null,"09","002","栃酪畜産ＩＣＴ／楽酪応援会議","会長　前田　宏"]
[null,null,null,null,null,null,null,null,null,null,null,"09","003","箒根地域楽酪応援協議会","会長　伊藤　昭光"]
[null,null,null,null,null,null,null,null,null,null,null,"09","004","日清丸紅栃木県畜産ＩＣＴ応援会議","会長　"]
[null,null,null,null,null,null,null,null,null,null,null,"09","005","那須地域畜産ＩＣＴ応援会議","会長　人見 成郎"]
[null,null,null,null,null,null,null,null,null,null,null,"09","006","両毛地域畜産ＩＣＴ／楽酪応援会議","会長　山﨑　伝造"]
[null,null,null,null,null,null,null,null,null,null,null,"10","001","多野藤岡農協酪農部会","部会長　武井　誠治"]
[null,null,null,null,null,null,null,null,null,null,null,"10","002","赤南楽酪応援会議","会長　神尾　和一"]
[null,null,null,null,null,null,null,null,null,null,null,"10","003","ＪＡあがつま酪農部","部長　星野　真一"]
[null,null,null,null,null,null,null,null,null,null,null,"10","004","ＪＡにったみどり酪農部","部長　岡村　章一"]
[null,null,null,null,null,null,null,null,null,null,null,"10","005","ＪＡ前橋市宮城支所酪農部","部長　前原　秀樹"]
[null,null,null,null,null,null,null,null,null,null,null,"10","006","群中酪酪農研究会","会長　川島　宏仁"]
[null,null,null,null,null,null,null,null,null,null,null,"10","007","利根沼田畜産ＩＣＴ／楽酪応援会議","会長　田村　和敏"]
[null,null,null,null,null,null,null,null,null,null,null,"10","008","明友楽酪応援会議","会長　"]
[null,null,null,null,null,null,null,null,null,null,null,"10","009","昭和村畜産応援会議","会長　"]
[null,null,null,null,null,null,null,null,null,null,null,"10","010","市野倉酪農クラスター協議会","会長　"]
[null,null,null,null,null,null,null,null,null,null,null,"10","011","前橋地域畜産ＩＣＴ応援会議","会長　"]
[null,null,null,null,null,null,null,null,null,null,null,"10","012","らくらく応援会議","会長　豊田　涼子"]
[null,null,null,null,null,null,null,null,null,null,null,"10","013","日清丸紅群馬県畜産ＩＣＴ応援会議","会長　江原　正治"]
[null,null,null,null,null,null,null,null,null,null,null,"10","014","新里中央畜産クラスター協議会","会長　小林　真人"]
[null,null,null,null,null,null,null,null,null,null,null,"10","015","ＪＡたかさき畜産クラスター協議会","会長　長坂　喜義"]
[null,null,null,null,null,null,null,null,null,null,null,"10","016","安中地域畜産ICT応援会議","会長　馬場　英輔"]
[null,null,null,null,null,null,null,null,null,null,null,"10","017","東毛酪農畜産クラスター協議会","会長　遠坂　和仁"]
[null,null,null,null,null,null,null,null,null,null,null,"11","001","埼玉酪農楽酪応援会議","会長　木本　栄一"]
[null,null,null,null,null,null,null,null,null,null,null,"11","002","全農埼玉県本部楽酪応援会議","会長　中村　敦也"]
[null,null,null,null,null,null,null,null,null,null,null,"12","001","八千代楽酪応援会議","会長　髙橋　秀行"]
[null,null,null,null,null,null,null,null,null,null,null,"12","002","ちばミルク楽酪応援会議","会長　増戸　弘義"]
[null,null,null,null,null,null,null,null,null,null,null,"12","003","千葉県新生楽酪応援会議","会長　大塚　優"]
[null,null,null,null,null,null,null,null,null,null,null,"12","004","西葉楽酪応援会議","会長　安井　信"]
[null,null,null,null,null,null,null,null,null,null,null,"12","005","ちば楽酪応援会議","会長　安井　憲一"]
[null,null,null,null,null,null,null,null,null,null,null,"12","006","佐倉市畜産クラスター協議会","会長　田辺　一明"]
[null,null,null,null,null,null,null,null,null,null,null,"12","007","千葉北部酪農協楽酪応援会議","会長　服部　一幸"]
[null,null,null,null,null,null,null,null,null,null,null,"12","008","千葉三和クラスター協議会","会長　栁下　雄一"]
[null,null,null,null,null,null,null,null,null,null,null,"12","009","ちば東葛畜産ＩＣＴ／楽酪応援会議","会長　"]
[null,null,null,null,null,null,null,null,null,null,null,"12","010","銚子地域畜産ＩＣＴ応援会議","会長　"]
[null,null,null,null,null,null,null,null,null,null,null,"12","011","JA市原市酪農クラスター協議会","会長　小山　清"]
[null,null,null,null,null,null,null,null,null,null,null,"14","001","神奈川県楽酪応援会議","会長　荒井　新吾"]
[null,null,null,null,null,null,null,null,null,null,null,"15","001","新潟県楽酪応援会議","会長　佐藤　恒平"]
[null,null,null,null,null,null,null,null,null,null,null,"17","001","石川県畜産クラスター協議会","会長　安田　秀樹"]
[null,null,null,null,null,null,null,null,null,null,null,"19","001","清里生乳生産楽酪応援会議","会長　星野 五三夫"]
[null,null,null,null,null,null,null,null,null,null,null,"19","002","富士ヶ嶺楽酪応援会議","会長　髙橋　明夫"]
[null,null,null,null,null,null,null,null,null,null,null,"19","003","甲州ワインビーフ応援会議","会長　"]
[null,null,null,null,null,null,null,null,null,null,null,"20","001","ＪＡ長野県楽酪応援会議","会長　平林　務"]
[null,null,null,null,null,null,null,null,null,null,null,"20","002","長野八ヶ岳畜産クラスター協議会","会長　宮澤　尚"]
[null,null,null,null,null,null,null,null,null,null,null,"20","003","上伊那畜産クラスター協議会","会長　白鳥　健一"]
[null,null,null,null,null,null,null,null,null,null,null,"20","004","佐久地域畜産クラスター協議会","会長　田中　豊峰"]
[null,null,null,null,null,null,null,null,null,null,null,"20","005","小川村畜産ＩＣＴ／楽酪応援会議","会長　笠原　弘顕"]
[null,null,null,null,null,null,null,null,null,null,null,"20","006","伊那南箕輪畜産クラスター協議会","会長　桃澤　明"]
[null,null,null,null,null,null,null,null,null,null,null,"20","007","南信州畜産ＩＣＴ／楽酪応援会議","会長　塩沢　昇"]
[null,null,null,null,null,null,null,null,null,null,null,"20","008","JA木曽畜産ICT/楽酪GO応援会議","会長　横井　勝美"]
[null,null,null,null,null,null,null,null,null,null,null,"20","009","龍峡酪農クラスター協議会","会長　村松　康広"]
[null,null,null,null,null,null,null,null,null,null,null,"20","010","JAながの畜産クラスター協議会","会長　宮澤　清志"]
[null,null,null,null,null,null,null,null,null,null,null,"21","001","岐阜県楽酪応援会議","会長　朝日　修"]
[null,null,null,null,null,null,null,null,null,null,null,"22","001","とぴあ浜松楽酪応援会議","会長　岩﨑　藤和"]
[null,null,null,null,null,null,null,null,null,null,null,"22","002","富士開拓楽酪応援会議","会長　後藤　康弘"]
[null,null,null,null,null,null,null,null,null,null,null,"22","003","富士宮農協楽酪応援会議","会長　土井　一彦"]
[null,null,null,null,null,null,null,null,null,null,null,"22","004","函南町畜産ＩＣＴ／楽酪応援会議","会長　川口　正文"]
[null,null,null,null,null,null,null,null,null,null,null,"23","001","愛知県楽酪応援会議","会長　河辺　敬一"]
[null,null,null,null,null,null,null,null,null,null,null,"23","002","ＪＡあいち肉牛応援会議","会長　鈴木　義正"]
[null,null,null,null,null,null,null,null,null,null,null,"24","001","三重県楽酪応援会議","会長　近藤 貞和"]
[null,null,null,null,null,null,null,null,null,null,null,"24","002","三重県和牛繁殖協議会","会長　髙橋　護"]
[null,null,null,null,null,null,null,null,null,null,null,"25","001","滋賀県酪農経営者協議会","会長　赤井　悟"]
[null,null,null,null,null,null,null,null,null,null,null,"25","002","滋賀県肉牛経営者協議会","会長　沢　晶弘"]
[null,null,null,null,null,null,null,null,null,null,null,"26","001","ＪＡ京都酪農部会楽酪応援会議","会長　人見　英作"]
[null,null,null,null,null,null,null,null,null,null,null,"27","001","堺酪農活性化協議会","会長　"]
[null,null,null,null,null,null,null,null,null,null,null,"27","002","大阪府酪農振興協議会","代表　小西　亨"]
[null,null,null,null,null,null,null,null,null,null,null,"28","001","兵庫県酪農負担軽減協議会","会長　吉川　稔英"]
[null,null,null,null,null,null,null,null,null,null,null,"28","002","ＨＱＭ酪農負担軽減協議会","会長　丸尾　建城"]
[null,null,null,null,null,null,null,null,null,null,null,"28","003","洲本市畜産クラスター協議会","会長　竹池　二郎"]
[null,null,null,null,null,null,null,null,null,null,null,"29","001","奈良県酪農畜産ＩＣＴ／楽酪応援会議","会長　森田　博次"]
[null,null,null,null,null,null,null,null,null,null,null,"29","002","奈良県畜産ＩＣＴ応援会議","会長　中尾　　茂"]
[null,null,null,null,null,null,null,null,null,null,null,"30","001","和歌山県ＪＡ高品質生乳生産連絡会楽酪応援会議","会長　瀧本　憲生"]
[null,null,null,null,null,null,null,null,null,null,null,"30","002","紀南和牛改良組合","組合長　打越　章介"]
[null,null,null,null,null,null,null,null,null,null,null,"31","001","鳥取県東部地域畜産クラスター協議会","会長　"]
[null,null,null,null,null,null,null,null,null,null,null,"31","002","鳥取県中西部地域畜産クラスター協議会","会長　小前　孝夫"]
[null,null,null,null,null,null,null,null,null,null,null,"32","001","三瓶開拓楽酪応援会議","会長　西谷　悟郎"]
[null,null,null,null,null,null,null,null,null,null,null,"33","001","岡山県楽酪応援会議","会長　本城　宏史"]
[null,null,null,null,null,null,null,null,null,null,null,"33","002","蒜山ジャージー農協楽酪応援会議","会長　"]
[null,null,null,null,null,null,null,null,null,null,null,"34","001","ひろしま楽酪応援会議","会長　温泉川　寛明"]
[null,null,null,null,null,null,null,null,null,null,null,"34","002","チチヤス酪農会議","会長　茅野　司"]
[null,null,null,null,null,null,null,null,null,null,null,"35","001","山口県酪農振興クラスター協議会","会長　"]
[null,null,null,null,null,null,null,null,null,null,null,"36","001","徳島県楽酪応援会議","会長　井上　泰一"]
[null,null,null,null,null,null,null,null,null,null,null,"37","001","香川県酪農部会","部会長　森末　雅美"]
[null,null,null,null,null,null,null,null,null,null,null,"37","002","西讃酪農畜産ICT／楽酪応援会議","代表　前川　正樹"]
[null,null,null,null,null,null,null,null,null,null,null,"37","003","東讃畜産振興センター肉牛部会畜産ＩＣＴ応援会議","代表　"]
[null,null,null,null,null,null,null,null,null,null,null,"38","001","愛媛楽酪応援会議","会長　河野　仁"]
[null,null,null,null,null,null,null,null,null,null,null,"38","002","東宇和楽酪応援会議","会長　"]
[null,null,null,null,null,null,null,null,null,null,null,"39","001","高知県酪農クラスター協議会","会長　国則　達生"]
[null,null,null,null,null,null,null,null,null,null,null,"40","001","ふくおか県楽酪応援会議","会長　草場　哲治"]
[null,null,null,null,null,null,null,null,null,null,null,"41","001","からつ酪農クラスター協議会","会長　松本　浩文"]
[null,null,null,null,null,null,null,null,null,null,null,"41","002","さが酪農クラスター協議会","会長　古川　幸典"]
[null,null,null,null,null,null,null,null,null,null,null,"41","003","佐賀県開拓畜産応援会議","会長　井上　富男"]
[null,null,null,null,null,null,null,null,null,null,null,"41","004","唐津・玄海畜産協議会","畜産部長　片山　博信"]
[null,null,null,null,null,null,null,null,null,null,null,"42","001","日清丸紅長崎県畜産ＩＣＴ応援会議","会長　伊藤　修二"]
[null,null,null,null,null,null,null,null,null,null,null,"42","002","長崎酪農がんばらんば協議会","会長　中村 隆馬"]
[null,null,null,null,null,null,null,null,null,null,null,"43","001","熊本県楽酪推進協議会","会長　大川　清治"]
[null,null,null,null,null,null,null,null,null,null,null,"43","002","小国郷畜産クラスター協議会","会長　髙村　祝次"]
[null,null,null,null,null,null,null,null,null,null,null,"43","003","熊本県畜産振興クラスター協議会","会長　富永　和隆"]
[null,null,null,null,null,null,null,null,null,null,null,"43","004","熊本県肉用牛生産振興推進協議会","会長　野村　克也"]
[null,null,null,null,null,null,null,null,null,null,null,"44","001","大分県酪楽酪応援会議","会長　清末　健一"]
[null,null,null,null,null,null,null,null,null,null,null,"44","002","竹田市畜産ICT協議会","会長　渡辺　英治"]
[null,null,null,null,null,null,null,null,null,null,null,"44","003","大分県農協肥育委託事業プロジェクト協議会","会長　"]
[null,null,null,null,null,null,null,null,null,null,null,"44","004","宇佐市肉用牛クラスター協議会","会長　久保　嘉久"]
[null,null,null,null,null,null,null,null,null,null,null,"45","001","宮崎県酪農クラスター協議会","会長　石川　幸保"]
[null,null,null,null,null,null,null,null,null,null,null,"45","002","都城・北諸県地区肉用牛クラスター協議会","会長　久保　博文"]
[null,null,null,null,null,null,null,null,null,null,null,"45","003","えびの市肉用牛クラスター協議会","会長　"]
[null,null,null,null,null,null,null,null,null,null,null,"46","001","鹿児島県酪農楽酪応援会議","会長　轟木　孝一"]
[null,null,null,null,null,null,null,null,null,null,null,"46","002","鹿屋市畜産クラスター協議会","会長　"]
[null,null,null,null,null,null,null,null,null,null,null,"46","003","出水市畜産クラスター協議会","会長　"]
[null,null,null,null,null,null,null,null,null,null,null,"47","001","沖縄県楽酪応援会議／畜産ＩＣＴ応援会議","会長　神谷　翔平"]

{"sheet":"機械装置リスト","index":4,"n_rows":62,"n_cols":80,"rows_kept":62,"cut":false,"hidden":false,"merged":[]}
[]
["機械装置の区分","メーカー名（搾乳ロボット）","型式名（搾乳ロボット）","カタログページ","機械装置の区分","メーカー名（ミルキングパーラー）","型式名（ミルキングパーラー）","カタログページ","機械装置の区分","メーカー名（搾乳ユニット搬送レール自動方式）","型式名（搾乳ユニット搬送レール自動方式）","カタログページ","機械装置の区分","メーカー名（搾乳ユニット搬送レール手動方式）","型式名（搾乳ユニット搬送レール手動方式）","カタログページ","機械装置の区分","メーカー名（自動離脱装置）","型式名（自動離脱装置）","カタログページ","機械装置の区分","メーカー名（乳頭洗浄装置）","型式名（乳頭洗浄装置）","カタログページ","機械装置の区分","メーカー名（自動給餌機：濃厚・粗飼料）","型式名（自動給餌機：濃厚・粗飼料）","カタログページ","機械装置の区分","メーカー名（自動給餌機：濃厚飼料）","型式名自動給餌機（自動給餌機：濃厚飼料）","カタログページ","機械装置の区分","メーカー名（ほ乳ロボット）","型式名（ほ乳ロボット）","カタログページ","機械装置の区分","メーカー名（餌寄せロボット）","型式名（餌寄せロボット）","カタログページ","機械装置の区分","メーカー名（自走式配餌車）","型式名（自走式配餌車）","カタログページ","機械装置の区分","メーカー名（稲わら細断機）","型式名（稲わら細断機）","カタログページ","機械装置の区分","メーカー名（敷料散布機）","型式名（敷料散布機）","カタログページ","機械装置の区分","メーカー名（発情発見機）","型式名（発情発見機）","カタログページ","機械装置の区分","メーカー名（分娩監視装置）","型式名（分娩監視装置）","カタログページ","機械装置の区分","メーカー名（行動監視装置:繁殖・肥育）","型式名（行動監視装置:繁殖・肥育）","カタログページ","機械装置の区分","メーカー名（行動監視装置:放牧）","型式名（行動監視装置:放牧）","カタログページ","機械装置の区分","メーカー名（バーンスクレーパー）","型式名（バーンスクレーパー）","カタログページ","機械装置の区分","メーカー名（移動式ほ乳機）","型式名（移動式ほ乳機）","カタログページ","機械装置の区分","メーカー名（ミルキングパーラー用自動離脱装置）","型式名（ミルキングパーラー用自動離脱装置）","カタログページ"]
["搾乳関係機械装置","LELY","A4",null,"搾乳関係機械装置","GEA","オートローターパフォーマ","p103","搾乳関係機械装置","オリオン機械","UCA30A","p102","搾乳関係機械装置","オリオン機械","UCR75","p102","搾乳関係機械装置","オリオン機械","MMD500","p101","搾乳関係機械装置","オリオン機械","TCU-S","","飼料給与関係機械装置","GEA","M2000","","飼料給与関係機械装置","中嶋製作所","F-50型","","飼料給与関係機械装置","フォースターテクニック","TAP5-VS2-30","p73","飼料給与関係機械装置","GEA","FRone","","飼料給与関係機械装置","JAY・LOR",5100,"p48","飼料給与関係機械装置","新興和産業","SUW-202","","家畜飼養管理機械装置","オリオン機械","BSMA08","p92","家畜飼養管理機械装置","GEA","首用（Integrate）","","家畜飼養管理機械装置","リモート","MD1109MBW（親機）","p313","家畜飼養管理機械装置","デザミス","DU-TG01（センサー）・DU-RE01（中継機）","p316","家畜飼養管理機械装置","デザミス","DU-TG01（センサー）・DU-RE01（中継機）","p316","家畜飼養管理機械装置","GEA","スワロー型（ケーブル）","","飼料給与関係機械装置","フォースターテクニック","ミルクモービル200L","","搾乳関係機械装置","milkrite-InｔerPuls","Imilk600",""]
["搾乳関係機械装置","LELY","A5","p113","搾乳関係機械装置","GEA","T8900","",null,null,null,null,"搾乳関係機械装置","オリオン機械","UCA30A手動","","搾乳関係機械装置","ストランゴ","ソフィマットSH-NW","","搾乳関係機械装置","オリオン機械","TCU-P","p100","飼料給与関係機械装置","GEA","M3000","","飼料給与関係機械装置","中嶋製作所","F-75型","","飼料給与関係機械装置","フォースターテクニック","TAK5-VS2-30","p73","飼料給与関係機械装置","JOZ","Moov Pro","","飼料給与関係機械装置","JAY・LOR",5050,"","飼料給与関係機械装置","チュウチク","ホシカッター","p51","家畜飼養管理機械装置","VALMETAL","e50","p93","家畜飼養管理機械装置","コムテック","TFR400E","p307","家畜飼養管理機械装置","デザミス","DU-CB01","p316","家畜飼養管理機械装置","デザミス","DU-TG02（センサー）・DU-RE02（中継機）","","家畜飼養管理機械装置","デザミス","DU-TG02（センサー）・DU-RE02（中継機）","","家畜飼養管理機械装置","GEA","V型（ケーブル）","","飼料給与関係機械装置","フォースターテクニック","ミルクモービル120L","","搾乳関係機械装置","GEA","デマトロン75",""]
["搾乳関係機械装置","GEA","R9900","p111","搾乳関係機械装置","TDM","R3","",null,null,null,null,"搾乳関係機械装置","SAC","IDC-T レール UNILINE","","搾乳関係機械装置","オリオン機械","OCR5000A","","搾乳関係機械装置","プリシステム","F71","p99","飼料給与関係機械装置","オリオン機械","FMFS30","p64","飼料給与関係機械装置","中嶋製作所","F-90型","","飼料給与関係機械装置","フォースターテクニック","子牛用フィードステーション","","飼料給与関係機械装置","JOZ","Moov2.0","p70","飼料給与関係機械装置","WIC","32-2SB","","飼料給与関係機械装置","ジェメリ","TR18-12","","家畜飼養管理機械装置","Wasserbauer","フライピット","","家畜飼養管理機械装置","コムテック","TFR400EA","p307","家畜飼養管理機械装置","uLikeKorea","LiveCare","p311","家畜飼養管理機械装置","Nedap","Nedapネックタグ","p320","家畜飼養管理機械装置","Nedap","Nedapネックタグ","p320","家畜飼養管理機械装置","GEA","スワロー型（チェーン）","","飼料給与関係機械装置","フォースターテクニック","MDK4-200-37-03","p77","搾乳関係機械装置","デラバル","MP580",""]
["搾乳関係機械装置","GEA","R9500","p112","搾乳関係機械装置","ミルクライン","ミルプロP4C","p106",null,null,null,null,"搾乳関係機械装置","デラバル","D-CR","","搾乳関係機械装置","デラバル","MUブルー","","搾乳関係機械装置","プリシステム","F488","","飼料給与関係機械装置","オリオン機械","FMA16A","p65","飼料給与関係機械装置","中嶋製作所","F-90SS型","","飼料給与関係機械装置","フォースターテクニック","体重計","","飼料給与関係機械装置","LELY","JUNO","p71","飼料給与関係機械装置","WIC","52-2SB","","飼料給与関係機械装置","ロビベック","PF600","p51",null,null,null,null,"家畜飼養管理機械装置","コムテック","TFR400E","p307","家畜飼養管理機械装置","太平洋工業","親機CS-PG01","p310","家畜飼養管理機械装置","uLikeKorea","LiveCare","p311","家畜飼養管理機械装置","uLikeKorea","LiveCare","p311","家畜飼養管理機械装置","GEA","V型（チェーン）","","飼料給与関係機械装置","フォースターテクニック","MDK4-200-37-04","p77","搾乳関係機械装置","デラバル","MP680",""]
["搾乳関係機械装置","デラバル","VMS V300","p115","搾乳関係機械装置","デラバル","PR3100HD","",null,null,null,null,"搾乳関係機械装置","本多製作所","ユニットポーター","","搾乳関係機械装置","SAC","IDC-Tライト","","搾乳関係機械装置","ウェスター","アダーガン","","飼料給与関係機械装置","オリオン機械","FMA20A","p65","飼料給与関係機械装置","中嶋製作所","RC-38型","p53","飼料給与関係機械装置","フォースターテクニック","CRS2-IF1-WH","p73","飼料給与関係機械装置","ボーマチック","FP-1","p71","飼料給与関係機械装置","WIC","70-2SB","","飼料給与関係機械装置","STAR","FRBC-100MS1","",null,null,null,null,"家畜飼養管理機械装置","コムテック","TFR400EF","p307","家畜飼養管理機械装置","ファーマーズサポート","MV-A0001","p308","家畜飼養管理機械装置","太平洋工業","親機CS-PG01","p310","家畜飼養管理機械装置","太平洋工業","親機CS-PG01","p310","家畜飼養管理機械装置","JOZ","チェーン式スクレーパー","p252","飼料給与関係機械装置","フォースターテクニック","MDK4-120-37-03","p77","搾乳関係機械装置","デラバル","MP780",""]
["搾乳関係機械装置","デラバル","VMS V300-OCC","p115","搾乳関係機械装置","デラバル","E500","p108",null,null,null,null,"搾乳関係機械装置","ストランゴ","ハンディユニットキャリア","","搾乳関係機械装置","ストランゴ","ソフィマットMD","p101",null,null,null,null,"飼料給与関係機械装置","オリオン機械","FMA04A","p65","飼料給与関係機械装置","中嶋製作所","RC-50型","p53","飼料給与関係機械装置","フォースターテクニック","VARIO+","","飼料給与関係機械装置","ボーマチック","FP-2","p71","飼料給与関係機械装置","WIC","90-2SB","","飼料給与関係機械装置","STAR","FRBC-120MS1","",null,null,null,null,"家畜飼養管理機械装置","コムテック","TFR400EDⅢ","p307","家畜飼養管理機械装置","ネットカメラ","ベーシックNET-WC01-00CT","","家畜飼養管理機械装置","ライブストック・アグリテクノ","＠mowment(アットモーメント）","p315","家畜飼養管理機械装置","ライブストック・アグリテクノ","＠mowment(アットモーメント）","p315","家畜飼養管理機械装置","GEAフール","スワロー型（ケーブル）","p252","飼料給与関係機械装置","フォースターテクニック","MDK4-120-37-04","p77","搾乳関係機械装置","デラバル","MP400",""]
["搾乳関係機械装置","デラバル","AMR","","搾乳関係機械装置","デラバル","E300","p108",null,null,null,null,"搾乳関係機械装置","土谷特殊農機具製作所","TUCユニットキャリー","","搾乳関係機械装置","ストランゴ","ソフィマットMD+MP  MODEL V2型","",null,null,null,null,"飼料給与関係機械装置","オリオン機械","FMA08A","p65","飼料給与関係機械装置","中嶋製作所","C-38型","p53","飼料給与関係機械装置","LELY（フォースターテクニック）","TAP5-VS2-30","p75","飼料給与関係機械装置","Wasserbauer","バトラーゴールドPro","p70","飼料給与関係機械装置","VALMETAL","525CC","p72","飼料給与関係機械装置","STAR","FRBC-120MS1P","",null,null,null,null,"家畜飼養管理機械装置","コムテック","TFR400EDⅢ（Jump）","p307","家畜飼養管理機械装置","ネットカメラ","ベーシックNET-WC01-00CW","","家畜飼養管理機械装置","ボーマチック","リアルタイム＋","","家畜飼養管理機械装置","ボーマチック","リアルタイム＋","","家畜飼養管理機械装置","GEAフール","V型（ケーブル）","p252","飼料給与関係機械装置","フォースターテクニック","MRP1-300-56-200V 50Hz","","搾乳関係機械装置","デラバル","MP130",""]
["搾乳関係機械装置","SAC","RDS Future Line ELITEミラー","","搾乳関係機械装置","ボーマチック","Xcalibur 360EX","p104",null,null,null,null,null,null,null,null,"搾乳関係機械装置","AIC",72560,"",null,null,null,null,"飼料給与関係機械装置","One 2 Feed","One2Feed Mix","","飼料給与関係機械装置","中嶋製作所","C-50型","p53","飼料給与関係機械装置","LELY（フォースターテクニック）","TAK5-VS2-30","p75","飼料給与関係機械装置","デラバル","オプティデュオ","p69","飼料給与関係機械装置","VALMETAL","530CC","p72",null,null,null,null,null,null,null,null,"家畜飼養管理機械装置","Allflex","SenseHub Dairy","p318","家畜飼養管理機械装置","ネットカメラ","スタンダードNET-WC01-01CT","",null,null,null,"",null,null,null,null,"家畜飼養管理機械装置","GEAフール","GT5","","飼料給与関係機械装置","フォースターテクニック","MRP1-300-56-200V 60Hz","","搾乳関係機械装置","デラバル","MP150",""]
["搾乳関係機械装置","SAC","RDS Future Line ELITEシングル","","搾乳関係機械装置","ボーマチック","Streamline 360EX","",null,null,null,null,null,null,null,null,"搾乳関係機械装置","AIC",70060,"",null,null,null,null,"飼料給与関係機械装置","LELY","LELY Vector","p62","飼料給与関係機械装置","大宮製作所","51型","p56","飼料給与関係機械装置","フォースターテクニック","CRS2-IF1-WH","p75",null,null,null,null,"飼料給与関係機械装置","VALMETAL","542CC","p72",null,null,null,null,null,null,null,null,"家畜飼養管理機械装置","Allflex","Sensehub Beef","p318","家畜飼養管理機械装置","ネットカメラ","スタンダードNET-WC01-01CW","",null,null,null,null,null,null,null,null,"家畜飼養管理機械装置","GEAフール","スワロー型（チェーン）","p252","飼料給与関係機械装置","フォースターテクニック","MRP1-200-56-200V 50Hz",""]
["搾乳関係機械装置","ミルコマックス","ロボマックス","p141","搾乳関係機械装置","SAC","SAC ロータリーパーラー","",null,null,null,null,null,null,null,null,"搾乳関係機械装置","AIC",70061,"",null,null,null,null,"飼料給与関係機械装置","デラバル","オプティマット","p67","飼料給与関係機械装置","大宮製作所","63型","p56","飼料給与関係機械装置","デラバル","CF1000S","p76",null,null,null,null,"飼料給与関係機械装置","VALMETAL","960CC","p72",null,null,null,null,null,null,null,null,"家畜飼養管理機械装置","Allflex","HeatimePro+","","家畜飼養管理機械装置","ネットカメラ","ドームスタンダードNET-WC04-01CT-A","",null,null,null,null,null,null,null,null,"家畜飼養管理機械装置","GEAフール","V型（チェーン）","p252","飼料給与関係機械装置","フォースターテクニック","MRP1-200-56-200V 60Hz",""]
[null,null,null,null,"搾乳関係機械装置","ベコデーリィオートメーション","ベコ・ロータリーパーラー","",null,null,null,null,null,null,null,null,"搾乳関係機械装置","ボーマチック","AMI5550","",null,null,null,null,"飼料給与関係機械装置","デラバル","オプティマットプラス","p67","飼料給与関係機械装置","大宮製作所","39型","p57","飼料給与関係機械装置","デラバル","CFR100","p76",null,null,null,null,"飼料給与関係機械装置","VALMETAL","975CC","p72",null,null,null,null,null,null,null,null,"家畜飼養管理機械装置","デザミス","DU-TG01（センサー）・DU-RE01（中継機）","p316","家畜飼養管理機械装置","ネットカメラ","ドームスタンダードNET-WC04-01CW-A","",null,null,null,null,null,null,null,null,"家畜飼養管理機械装置","福地工業","FS-2M14","","飼料給与関係機械装置","デラバル","CMM200+",""]
[null,null,null,null,"搾乳関係機械装置","フルウッド","ロータリーアブレスト","",null,null,null,null,null,null,null,null,"搾乳関係機械装置","SAC","UNICO1","",null,null,null,null,"飼料給与関係機械装置","デラバル","オプティマットマスター","p67","飼料給与関係機械装置","大宮製作所","51型","p57","飼料給与関係機械装置","フォースターテクニック","CRS2-IF1-WH　　","p74",null,null,null,null,"飼料給与関係機械装置","VALMETAL","E30","p72",null,null,null,null,null,null,null,null,"家畜飼養管理機械装置","デザミス","DU-TG02（センサー）・DU-RE02（中継機）","","家畜飼養管理機械装置","ネットカメラ","ドームNET-WC02-01CT","",null,null,null,null,null,null,null,null,"家畜飼養管理機械装置","JOZ","ホンダコンビスクレッパー","","飼料給与関係機械装置","デラバル","CMM120+",""]
[null,null,null,null,"搾乳関係機械装置","ストランゴ","パラレルタイプ","p109",null,null,null,null,null,null,null,null,"搾乳関係機械装置","SAC","IDC Tリート","",null,null,null,null,"飼料給与関係機械装置","デラバル","シャトルECO","","飼料給与関係機械装置","大宮製作所","39型","p57","飼料給与関係機械装置","フォースターテクニック","TAP5-VS1-30","",null,null,null,null,"飼料給与関係機械装置","VALMETAL","E42","p72",null,null,null,null,null,null,null,null,"家畜飼養管理機械装置","uLikeKorea","LiveCare","p311","家畜飼養管理機械装置","ネットカメラ","ドームNET-WC02-01CW","",null,null,null,null,null,null,null,null,"家畜飼養管理機械装置","パッツ","インテリチェーン","","飼料給与関係機械装置","Holm & Laue","MTX100","p78"]
[null,null,null,null,"搾乳関係機械装置","ストランゴ","ヘリンボーンタイプ","",null,null,null,null,null,null,null,null,"搾乳関係機械装置","オリオン機械","OCR2000B","",null,null,null,null,"飼料給与関係機械装置","チュウチク","BB800","p50","飼料給与関係機械装置","大宮製作所","51型","p57","飼料給与関係機械装置","フォースターテクニック","TAK5-VS2-30","p74",null,null,null,null,"飼料給与関係機械装置","VALMETAL","E60","p72",null,null,null,null,null,null,null,null,"家畜飼養管理機械装置","太平洋工業","親機CS-PG01","p310","家畜飼養管理機械装置","ネットカメラ","ドームプロNET-WC03-01CT","",null,null,null,null,null,null,null,null,"家畜飼養管理機械装置","パッツ","インテリケーブル","","飼料給与関係機械装置","Holm & Laue","MTX100P","p78"]
[null,null,null,null,"搾乳関係機械装置","GEA","マグナム90iVL","p103",null,null,null,null,null,null,null,null,"搾乳関係機械装置","InｔerPuls","ACRC/DVC1000","",null,null,null,null,"飼料給与関係機械装置","チュウチク","BB1000","p50","飼料給与関係機械装置","大宮製作所","T60型","p57","飼料給与関係機械装置","フォースターテクニック","TAK5-VS1-30","",null,null,null,null,"飼料給与関係機械装置","チュウチク","CF-30D","p49",null,null,null,null,null,null,null,null,"家畜飼養管理機械装置","afimilk","アフィタグⅡ（脚用）","p306","家畜飼養管理機械装置","ネットカメラ","ドームプロNET-WC03-01CW","",null,null,null,null,null,null,null,null,"家畜飼養管理機械装置","ストランゴ","バーンスクレイパー","p253","飼料給与関係機械装置","Holm & Laue","MTX150","p78"]
[null,null,null,null,"搾乳関係機械装置","GEA","グローバル90VL","p103",null,null,null,null,null,null,null,null,null,null,null,null,null,null,null,null,"飼料給与関係機械装置","チュウチク","DM-400SL","p49","飼料給与関係機械装置","大宮製作所","600型","p56","飼料給与関係機械装置","フォースターテクニック","TAP5-VS2-30","p74",null,null,null,null,"飼料給与関係機械装置","チュウチク","CF-40D","",null,null,null,null,null,null,null,null,"家畜飼養管理機械装置","afimilk","アフィカラー（首用）","p306","家畜飼養管理機械装置","キャノン","VB-M741LE","",null,null,null,null,null,null,null,null,"家畜飼養管理機械装置","デラバル","HCR60","p254","飼料給与関係機械装置","Holm & Laue","MTX150P","p78"]
[null,null,null,null,"搾乳関係機械装置","GEA","グローバル90i","p103",null,null,null,null,null,null,null,null,null,null,null,null,null,null,null,null,"飼料給与関係機械装置","チュウチク","DM-600SL","p49","飼料給与関係機械装置","大宮製作所","1000型","p56","飼料給与関係機械装置","フォースターテクニック","TAP5-VS1-30","",null,null,null,null,"飼料給与関係機械装置","チュウチク","CF-50D","p49",null,null,null,null,null,null,null,null,"家畜飼養管理機械装置","afmilk","アフィアクトⅡ","","家畜飼養管理機械装置","キャノン","AXIS M2026-LE","",null,null,null,null,null,null,null,null,"家畜飼養管理機械装置","デラバル","AKD140","p254","飼料給与関係機械装置","Holm & Laue","MTX260","p78"]
[null,null,null,null,"搾乳関係機械装置","GEA","チャレンジャー90","p103",null,null,null,null,null,null,null,null,null,null,null,null,null,null,null,null,"飼料給与関係機械装置","チュウチク","DM-800SL","p49","飼料給与関係機械装置","大宮製作所","1400型","p56","飼料給与関係機械装置","フォースターテクニック","TAK5-VS2-60","",null,null,null,null,"飼料給与関係機械装置","チュウチク","CL-30D","p49",null,null,null,null,null,null,null,null,"家畜飼養管理機械装置","LELY","H-LD","","家畜飼養管理機械装置","デラバル","FMC-IP1","",null,null,null,null,null,null,null,null,"家畜飼養管理機械装置","デラバル","AKD250","p254","飼料給与関係機械装置","Holm & Laue","MTX260P","p78"]
[null,null,null,null,"搾乳関係機械装置","ミルクライン","ミルプロP4C","",null,null,null,null,null,null,null,null,null,null,null,null,null,null,null,null,"飼料給与関係機械装置","チュウチク","DM-1000SL","p49","飼料給与関係機械装置","大宮製作所","S100型","p56","飼料給与関係機械装置","ストランゴ（フォースターテクニック）","TAP5-VS2","",null,null,null,null,"飼料給与関係機械装置","チュウチク","CL-40D","",null,null,null,null,null,null,null,null,"家畜飼養管理機械装置","LELY","HR-LDn","","家畜飼養管理機械装置","ノーリツプレシジョン","NU-A11","p309",null,null,null,null,null,null,null,null,"家畜飼養管理機械装置","JOZ","BARN-E 185 RVS","","飼料給与関係機械装置","ウーバン","MS-100",""]
[null,null,null,null,"搾乳関係機械装置","TDM","LUCY","p107",null,null,null,null,null,null,null,null,null,null,null,null,null,null,null,null,"飼料給与関係機械装置","チュウチク","DM-1200SL","p49","飼料給与関係機械装置","長野クリエート","CK-38","p54","飼料給与関係機械装置","フォースターテクニック","CF-130","",null,null,null,null,"飼料給与関係機械装置","チュウチク","CL-50D","p49",null,null,null,null,null,null,null,null,"家畜飼養管理機械装置","デラバル","AR2","","家畜飼養管理機械装置","ガーミチューナー","TYPE3","",null,null,null,null,null,null,null,null,null,null,null,null,"飼料給与関係機械装置","ウーバン","MS-150",""]
[null,null,null,null,"搾乳関係機械装置","デラバル","P500","p109",null,null,null,null,null,null,null,null,null,null,null,null,null,null,null,null,"飼料給与関係機械装置","チュウチク","DM-1500SL","p49","飼料給与関係機械装置","長野クリエート","CK-50","p54","飼料給与関係機械装置","フォースターテクニック","CF-230","",null,null,null,null,"飼料給与関係機械装置","チュウチク","CL-70D","",null,null,null,null,null,null,null,null,"家畜飼養管理機械装置","デラバル","HN100","p308","家畜飼養管理機械装置","大英システム","牛監視カメラ","",null,null,null,null,null,null,null,null,null,null,null,null,"飼料給与関係機械装置","ウーバン","MS-200",""]
[null,null,null,null,"搾乳関係機械装置","デラバル","P2100","p109",null,null,null,null,null,null,null,null,null,null,null,null,null,null,null,null,"飼料給与関係機械装置","チュウチク","DM-1700SL","p49","飼料給与関係機械装置","長野クリエート","WK-38","p54","飼料給与関係機械装置","フォースターテクニック","CF-260","",null,null,null,null,"飼料給与関係機械装置","チュウチク","CL-80D","",null,null,null,null,null,null,null,null,"家畜飼養管理機械装置","デラバル","HN500","p308","家畜飼養管理機械装置","\tCore-Business","e-CAM(イーカム)",""]
[null,null,null,null,"搾乳関係機械装置","ボーマチック","Xcalibur 90LX","p105",null,null,null,null,null,null,null,null,null,null,null,null,null,null,null,null,"飼料給与関係機械装置","チュウチク","DM-2000SL","p49","飼料給与関係機械装置","長野クリエート","WK-50","p54","飼料給与関係機械装置","BRITMILK","ID-TEK","",null,null,null,null,"飼料給与関係機械装置","チュウチク","CL-100D","p49",null,null,null,null,null,null,null,null,"家畜飼養管理機械装置","Nedap","Nedapネックタグ","p320","家畜飼養管理機械装置","Core-Support","MOWCAM","p312"]
[null,null,null,null,"搾乳関係機械装置","SAC","SAC サイドバイサイド","",null,null,null,null,null,null,null,null,null,null,null,null,null,null,null,null,"飼料給与関係機械装置","ペロン","TR1500","","飼料給与関係機械装置","長野クリエート","S-50","p55","飼料給与関係機械装置","Holm & Laue","カーフエクスパート","p77",null,null,null,null,"飼料給与関係機械装置","チュウチク","FC-600","p72",null,null,null,null,null,null,null,null,"家畜飼養管理機械装置","ボーマチック","リアルタイム＋",""]
[null,null,null,null,"搾乳関係機械装置","ストランゴ","ターナー社ストール","p109",null,null,null,null,null,null,null,null,null,null,null,null,null,null,null,null,"飼料給与関係機械装置","ペロン","TR2000コンビ","","飼料給与関係機械装置","長野クリエート","S-75","p55",null,null,null,null,null,null,null,null,"飼料給与関係機械装置","チュウチク","FC-1000","p72",null,null,null,null,null,null,null,null,"家畜飼養管理機械装置","SAC","MDS Unitrack",""]
[null,null,null,null,"搾乳関係機械装置","ベコデーリィオートメーション","ベコ・パラレルパーラー","",null,null,null,null,null,null,null,null,null,null,null,null,null,null,null,null,"飼料給与関係機械装置","ペロン","TR2500","","飼料給与関係機械装置","長野クリエート","S-90","p55",null,null,null,null,null,null,null,null,"飼料給与関係機械装置","VALMETAL","3355B","",null,null,null,null,null,null,null,null,"家畜飼養管理機械装置","フルウッド","クリスタル",""]
[null,null,null,null,"搾乳関係機械装置","フルウッド","QS","",null,null,null,null,null,null,null,null,null,null,null,null,null,null,null,null,"飼料給与関係機械装置","ペロン","TR3000コンビ","","飼料給与関係機械装置","オカドハザック","MS-1S-550TPBD","",null,null,null,null,null,null,null,null,"飼料給与関係機械装置","VALMETAL","4390B","",null,null,null,null,null,null,null,null,"家畜飼養管理機械装置","ストランゴ","アクトメーター",""]
[null,null,null,null,"搾乳関係機械装置","フルウッド","INDEX90","",null,null,null,null,null,null,null,null,null,null,null,null,null,null,null,null,"飼料給与関係機械装置","ペロン","TMRフィーダー","","飼料給与関係機械装置","オカドハザック","MS-2S-1400TPBD","",null,null,null,null,null,null,null,null,"飼料給与関係機械装置","VALMETAL","5390B","",null,null,null,null,null,null,null,null,"家畜飼養管理機械装置","ストランゴ","アクティビティタグ-首用",""]
[null,null,null,null,"搾乳関係機械装置","GEA","ユーロクラス1200","p103",null,null,null,null,null,null,null,null,null,null,null,null,null,null,null,null,"飼料給与関係機械装置","ペロン","ベルトフィーダー","","飼料給与関係機械装置","藤樹運搬機工業","FK-50型","",null,null,null,null,null,null,null,null,"飼料給与関係機械装置","VALMETAL","73110B","",null,null,null,null,null,null,null,null,"家畜飼養管理機械装置","ストランゴ","アクティビティタグ-脚用",""]
[null,null,null,null,"搾乳関係機械装置","GEA","ユーロクラス800","p103",null,null,null,null,null,null,null,null,null,null,null,null,null,null,null,null,"飼料給与関係機械装置","ロビベック","DEC-4430","p63","飼料給与関係機械装置","明治機械","スカイサーバー","",null,null,null,null,null,null,null,null,"飼料給与関係機械装置","VALMETAL","93110B","",null,null,null,null,null,null,null,null,"家畜飼養管理機械装置","ファームノート","ファームノートカラー",""]
[null,null,null,null,"搾乳関係機械装置","デラバル","HB30°","p108",null,null,null,null,null,null,null,null,null,null,null,null,null,null,null,null,"飼料給与関係機械装置","ロビベック","DEC-4436","p63","飼料給与関係機械装置","オリオン機械","FMAG350","p64",null,null,null,null,null,null,null,null,"飼料給与関係機械装置","ウィバーライン","M531","",null,null,null,null,null,null,null,null,"家畜飼養管理機械装置","ミルクライトインターパルス","UHF-HD",""]
[null,null,null,null,"搾乳関係機械装置","デラバル","HB50°","p108",null,null,null,null,null,null,null,null,null,null,null,null,null,null,null,null,"飼料給与関係機械装置","ロビベック","DEC-4442","p63","飼料給与関係機械装置","オリオン機械","FMAG440","p64",null,null,null,null,null,null,null,null,"飼料給与関係機械装置","ウィバーライン","M537","",null,null,null,null,null,null,null,null,"家畜飼養管理機械装置","ネダップ","首用（Integrate）",""]
[null,null,null,null,"搾乳関係機械装置","SAC","SAC ヘリンボーンパーラー","",null,null,null,null,null,null,null,null,null,null,null,null,null,null,null,null,"飼料給与関係機械装置","ロビベック","DEC-4448","p63","飼料給与関係機械装置","オリオン機械","FMST20","",null,null,null,null,null,null,null,null,"飼料給与関係機械装置","ウィバーライン","M521","",null,null,null,null,null,null,null,null,"家畜飼養管理機械装置","ネダップ","VP8002",""]
[null,null,null,null,"搾乳関係機械装置","ストランゴ","ヘリングボーンパーラー","",null,null,null,null,null,null,null,null,null,null,null,null,null,null,null,null,"飼料給与関係機械装置","ロビベック","DEC-HDR","p63","飼料給与関係機械装置","オリオン機械","FMST16","",null,null,null,null,null,null,null,null,"飼料給与関係機械装置","ウィバーライン","M525","",null,null,null,null,null,null,null,null,"家畜飼養管理機械装置","ファーマーズサポート","発情検知システム","p308"]
[null,null,null,null,"搾乳関係機械装置","ベコデーリィオートメーション","ベコ・へリングボーンパーラー","",null,null,null,null,null,null,null,null,null,null,null,null,null,null,null,null,"飼料給与関係機械装置","ロビベック","ROVER-MVR","p63","飼料給与関係機械装置","デラバル","ORW","",null,null,null,null,null,null,null,null,"飼料給与関係機械装置","緑産","ＦＫＧ90/450","p44"]
[null,null,null,null,"搾乳関係機械装置","フルウッド","HB50i","",null,null,null,null,null,null,null,null,null,null,null,null,null,null,null,null,"飼料給与関係機械装置","大宮製作所","FMR-1H","p66","飼料給与関係機械装置","デラバル","FW200","",null,null,null,null,null,null,null,null,"飼料給与関係機械装置","緑産","ＦＫＤ90/450",""]
[null,null,null,null,"搾乳関係機械装置","BETEBE","BTB2×6-80°　","",null,null,null,null,null,null,null,null,null,null,null,null,null,null,null,null,"飼料給与関係機械装置","大宮製作所","FMR-2H","p66","飼料給与関係機械装置","デラバル","オプティフィーダーOFP","p66",null,null,null,null,null,null,null,null,"飼料給与関係機械装置","緑産","ＦＫＧ70/450","p44"]
[null,null,null,null,"搾乳関係機械装置","BETEBE","BTB2×8-80°　","",null,null,null,null,null,null,null,null,null,null,null,null,null,null,null,null,"飼料給与関係機械装置","大宮製作所","FMR-3H","p66","飼料給与関係機械装置","ペロン",300,"",null,null,null,null,null,null,null,null,"飼料給与関係機械装置","緑産","ＦＫＤ70/450",""]
[null,null,null,null,"搾乳関係機械装置","BETEBE","BTB2×6-60°　","",null,null,null,null,null,null,null,null,null,null,null,null,null,null,null,null,"飼料給与関係機械装置","大宮製作所","FMR-4H","p66","飼料給与関係機械装置","ペロン",400,"",null,null,null,null,null,null,null,null,"飼料給与関係機械装置","緑産","ＦＫＧ110/450","p44"]
[null,null,null,null,"搾乳関係機械装置","BETEBE","BTB2×8-60°　","",null,null,null,null,null,null,null,null,null,null,null,null,null,null,null,null,"飼料給与関係機械装置","トリオリット社","WP300","","飼料給与関係機械装置","ペロン",600,"",null,null,null,null,null,null,null,null,"飼料給与関係機械装置","緑産","ＦＫＤ110/450",""]
[null,null,null,null,"搾乳関係機械装置","ストランゴ","個別退出方式","",null,null,null,null,null,null,null,null,null,null,null,null,null,null,null,null,null,null,null,null,"飼料給与関係機械装置","ペロン","2W 400/600","",null,null,null,null,null,null,null,null,"飼料給与関係機械装置","緑産","ＦＢ30/400",""]
[null,null,null,null,"搾乳関係機械装置","オリオン機械","PMH76SJ-SW","",null,null,null,null,null,null,null,null,null,null,null,null,null,null,null,null,null,null,null,null,"飼料給与関係機械装置","ロビベック","ROV4000","p63",null,null,null,null,null,null,null,null,"飼料給与関係機械装置","緑産","ＦＬ110/500",""]
[null,null,null,null,"搾乳関係機械装置","オリオン機械","PMH64SJ-SW　","",null,null,null,null,null,null,null,null,null,null,null,null,null,null,null,null,null,null,null,null,null,null,null,null,null,null,null,null,null,null,null,null,"飼料給与関係機械装置","緑産","ＦＬ130/500",""]
[null,null,null,null,"搾乳関係機械装置","デラバル","ML3100","",null,null,null,null,null,null,null,null,null,null,null,null,null,null,null,null,null,null,null,null,null,null,null,null,null,null,null,null,null,null,null,null,"飼料給与関係機械装置","緑産","ＦＬ150/500",""]
[null,null,null,null,"搾乳関係機械装置","SAC","SAC スイングオーバー","",null,null,null,null,null,null,null,null,null,null,null,null,null,null,null,null,null,null,null,null,null,null,null,null,null,null,null,null,null,null,null,null,"飼料給与関係機械装置","緑産","ＦＬ170/500",""]
[null,null,null,null,"搾乳関係機械装置","GEA","オートタンデムパーラー","",null,null,null,null,null,null,null,null,null,null,null,null,null,null,null,null,null,null,null,null,null,null,null,null,null,null,null,null,null,null,null,null,"飼料給与関係機械装置","緑産","ＳＧ50RE/400","p44"]
[null,null,null,null,"搾乳関係機械装置","ストランゴ","タンデムパーラー","",null,null,null,null,null,null,null,null,null,null,null,null,null,null,null,null,null,null,null,null,null,null,null,null,null,null,null,null,null,null,null,null,"飼料給与関係機械装置","緑産","ＳＧ70RE/450","p44"]
[null,null,null,null,"搾乳関係機械装置","オリオン機械","PMH76SJ-P","",null,null,null,null,null,null,null,null,null,null,null,null,null,null,null,null,null,null,null,null,null,null,null,null,null,null,null,null,null,null,null,null,"飼料給与関係機械装置","緑産","ＳＧ90RE/450","p44"]
[null,null,null,null,"搾乳関係機械装置","オリオン機械","PMH64SJ-P","p110",null,null,null,null,null,null,null,null,null,null,null,null,null,null,null,null,null,null,null,null,null,null,null,null,null,null,null,null,null,null,null,null,"飼料給与関係機械装置","緑産","ＳＧ110RE/450","p44"]
[null,null,null,null,null,null,null,null,null,null,null,null,null,null,null,null,null,null,null,null,null,null,null,null,null,null,null,null,null,null,null,null,null,null,null,null,null,null,null,null,"飼料給与関係機械装置","緑産","ＳＧ110RE/500","p44"]
[null,null,null,null,null,null,null,null,null,null,null,null,null,null,null,null,null,null,null,null,null,null,null,null,null,null,null,null,null,null,null,null,null,null,null,null,null,null,null,null,"飼料給与関係機械装置","緑産","ＳＧ130RE/500","p46"]
[null,null,null,null,null,null,null,null,null,null,null,null,null,null,null,null,null,null,null,null,null,null,null,null,null,null,null,null,null,null,null,null,null,null,null,null,null,null,null,null,"飼料給与関係機械装置","緑産","ＳＧ150RE/500","p46"]
[null,null,null,null,null,null,null,null,null,null,null,null,null,null,null,null,null,null,null,null,null,null,null,null,null,null,null,null,null,null,null,null,null,null,null,null,null,null,null,null,"飼料給与関係機械装置","緑産","ＳＧ170RE/500","p46"]
[null,null,null,null,null,null,null,null,null,null,null,null,null,null,null,null,null,null,null,null,null,null,null,null,null,null,null,null,null,null,null,null,null,null,null,null,null,null,null,null,"飼料給与関係機械装置","スガルボルディ","KOALA2.5MD/S",""]
[null,null,null,null,null,null,null,null,null,null,null,null,null,null,null,null,null,null,null,null,null,null,null,null,null,null,null,null,null,null,null,null,null,null,null,null,null,null,null,null,"飼料給与関係機械装置","スガルボルディ","KOALA4.5MD/S",""]
[null,null,null,null,null,null,null,null,null,null,null,null,null,null,null,null,null,null,null,null,null,null,null,null,null,null,null,null,null,null,null,null,null,null,null,null,null,null,null,null,"飼料給与関係機械装置","岡田製作所","700LT",""]
[null,null,null,null,null,null,null,null,null,null,null,null,null,null,null,null,null,null,null,null,null,null,null,null,null,null,null,null,null,null,null,null,null,null,null,null,null,null,null,null,"飼料給与関係機械装置","タカキタ","EF2030",""]
[null,null,null,null,null,null,null,null,null,null,null,null,null,null,null,null,null,null,null,null,null,null,null,null,null,null,null,null,null,null,null,null,null,null,null,null,null,null,null,null,"飼料給与関係機械装置","タカキタ","EF2040",""]
[null,null,null,null,null,null,null,null,null,null,null,null,null,null,null,null,null,null,null,null,null,null,null,null,null,null,null,null,null,null,null,null,null,null,null,null,null,null,null,null,"飼料給与関係機械装置","タカキタ","EF2630",""]
[null,null,null,null,null,null,null,null,null,null,null,null,null,null,null,null,null,null,null,null,null,null,null,null,null,null,null,null,null,null,null,null,null,null,null,null,null,null,null,null,"飼料給与関係機械装置","フジキ","EY8-40G",""]

{"sheet":"機械装置リスト_隠し","index":5,"n_rows":23,"n_cols":79,"rows_kept":23,"cut":false,"hidden":true,"merged":[]}
[]
[]
[]
[null,"LELY","A4",null,null,"GEA","パラレルタイプ",null,null,"オリオン機械","UCA30A",null,null,"オリオン機械","UCR75",null,null,"オリオン機械","MMD500",null,null,"オリオン機械","TCU-S",null,null,"GEA","FMR-1H",null,null,"中嶋製作所","F-50型",null,null,"フォースターテクニック","TAP5-VS2-30",null,null,"GEA","FRone",null,null,"JAY・LOR","EF2030",null,null,"新興和産業","FRBC-100MS1",null,null,"オリオン機械","e50",null,null,"GEA","LiveCare",null,null,"リモート","DU-CB01",null,null,"デザミス","DU-TG01（センサー）・DU-RE01（中継機）",null,null,"デザミス","MTK-GNT02",null,null,"GEA","スワロー型（ケーブル）",null,null,"フォースターテクニック","CMM200+",null,null,"milkrite-InｔerPuls","Imilk600"]
[null,"GEA","A5",null,null,"TDM","ヘリンボーンタイプ",null,null,null,null,null,null,"SAC","UCA30A手動",null,null,"ストランゴ","OCR5000A",null,null,"プリシステム","TCU-P",null,null,"オリオン機械","FMR-2H",null,null,"大宮製作所","F-60型",null,null,"LELY（フォースターテクニック）","TAK5-VS2-30",null,null,"JOZ","FP-2",null,null,"WIC","EF2040",null,null,"チュウチク","FRBC-120MS1",null,null,"VALMETAL",null,null,null,"コムテック","アフィカラー（首用）",null,null,"デザミス",null,null,null,"Nedap","DU-TG02（センサー）・DU-RE02（中継機）",null,null,"Nedap",null,null,null,"JOZ","V型（ケーブル）",null,null,"デラバル","CMM120+",null,null,"GEA"]
[null,"デラバル","AMR",null,null,"ミルクライン","ターナー社ストール",null,null,null,null,null,null,"デラバル",null,null,null,"デラバル","OCR2000B",null,null,"ウェスター",null,null,null,"One 2 Feed","FMR-3H",null,null,"長野クリエート","F-75型",null,null,"デラバル","スターターフィーダー",null,null,"LELY",null,null,null,"VALMETAL","EF2630",null,null,"ジェメリ","FRBC-120MS1P",null,null,"Wasserbauer",null,null,null,"Allflex","HeatimePro+",null,null,"uLikeKorea",null,null,null,"uLikeKorea",null,null,null,"uLikeKorea",null,null,null,"GEAフール","GT5",null,null,"Holm & Laue","MDK4-200-37-03",null,null,"デラバル"]
[null,"SAC",null,null,null,"デラバル","ヘリングボーンパーラー",null,null,null,null,null,null,"本多製作所",null,null,null,"SAC","MP580",null,null,"デラバル",null,null,null,"LELY","FMR-4H",null,null,"オカドハザック","F-90型",null,null,"ストランゴ（フォースターテクニック）","CRS2-IF1-WH",null,null,"ボーマチック",null,null,null,"チュウチク","90-2SB",null,null,"ロビベック",null,null,null,"Allflex",null,null,null,"デザミス",null,null,null,"太平洋工業",null,null,null,"太平洋工業",null,null,null,"太平洋工業",null,null,null,"福地工業","スワロー型（チェーン）",null,null,"ウーバン","MDK4-200-37-04"]
[null,"ミルコマックス",null,null,null,"ボーマチック","個別退出方式",null,null,null,null,null,null,"ストランゴ",null,null,null,"AIC","MP680",null,null,"デラバル",null,null,null,"デラバル","FMA08",null,null,"藤樹運搬機工業","RC-38型",null,null,"BRITMILK","VARIO+",null,null,"Wasserbauer",null,null,null,"ウィバーライン",null,null,null,"STAR",null,null,null,"SCR",null,null,null,"uLikeKorea",null,null,null,"ファーマーズサポート",null,null,null,"ライブストック・アグリテクノ",null,null,null,"ライブストック・アグリテクノ",null,null,null,"パッツ","V型（チェーン）",null,null,null,"MDK4-120-37-03"]
[null,"ミルコマックス",null,null,null,"SAC","タンデムパーラー",null,null,null,null,null,null,"土谷特殊農機具製作所",null,null,null,"ボーマチック","MP780",null,null,null,null,null,null,"チュウチク",null,null,null,"明治機械","RC-50型",null,null,"Holm & Laue","CRS2-IF1-WH",null,null,"デラバル",null,null,null,"緑産",null,null,null,null,null,null,null,"afmilk",null,null,null,"太平洋工業",null,null,null,"ネットカメラ",null,null,null,"ボーマチック",null,null,null,"ボーマチック",null,null,null,"ストランゴ",null,null,null,null,"MDK4-120-37-04"]
[null,null,null,null,null,"ベコデーリィオートメーション","ユーロクラス1200",null,null,null,null,null,null,null,null,null,null,"InｔerPuls","MP400",null,null,null,null,null,null,"ペロン",null,null,null,"オリオン機械","C-38型",null,null,null,"CRS2-IF1-WH　　",null,null,"緑産",null,null,null,"スガルボルディ",null,null,null,null,null,null,null,"SCR、ミルクライン",null,null,null,"afimilk",null,null,null,"キャノン",null,null,null,null,null,null,null,"デラバル",null,null,null,"デラバル",null,null,null,null,"MRP1-300-56-200V 50Hz"]
[null,null,null,null,null,"フルウッド","ユーロクラス800",null,null,null,null,null,null,null,null,null,null,"InｔerPuls","MP130",null,null,null,null,null,null,"ロビベック",null,null,null,"デラバル","C-50型",null,null,null,"FC-PRD1EB25",null,null,"スガルボルディ",null,null,null,"岡田製作所",null,null,null,null,null,null,null,"デラバル",null,null,null,"afmilk",null,null,null,"デラバル",null,null,null,null,null,null,null,"渋谷",null,null,null,"デラバル",null,null,null,null,"MRP1-300-56-200V 60Hz"]
[null,null,null,null,null,"ストランゴ","オートタンデムパーラー",null,null,null,null,null,null,null,null,null,null,"InｔerPuls","MP150",null,null,null,null,null,null,"大宮製作所",null,null,null,"ペロン",null,null,null,null,"FC-PRD2EB50",null,null,"岡田製作所",null,null,null,"タカキタ",null,null,null,null,null,null,null,"SEMEX",null,null,null,"LELY",null,null,null,"ノーリツプレシジョン",null,null,null,null,null,null,null,null,null,null,null,null,null,null,null,null,"MRP1-200-56-200V 50Hz"]
[null,null,null,null,null,"BETEBE","オートタンデムパーラー",null,null,null,null,null,null,null,null,null,null,"GEA",null,null,null,null,null,null,null,"トリオリット社",null,null,null,"ロビベック",null,null,null,null,"FC-KRD1EB25",null,null,"タカキタ",null,null,null,"フジキ",null,null,null,null,null,null,null,"ボーマチック",null,null,null,"デラバル",null,null,null,"ガーミチューナー",null,null,null,null,null,null,null,null,null,null,null,null,null,null,null,null,"MRP1-200-56-200V 60Hz"]
[null,null,null,null,null,"オリオン機械",null,null,null,null,null,null,null,null,null,null,null,null,null,null,null,null,null,null,null,"長野クリエート",null,null,null,null,null,null,null,null,"FC-KRD2EB50",null,null,"オカドバザック",null,null,null,"フジキ",null,null,null,null,null,null,null,"P.A.テクノロジー",null,null,null,"Nedap",null,null,null,"大英システム"]
[null,null,null,null,null,null,null,null,null,null,null,null,null,null,null,null,null,null,null,null,null,null,null,null,null,null,null,null,null,null,null,null,null,null,"FC-PIF2EB50",null,null,"フジキ",null,null,null,"フジキ",null,null,null,null,null,null,null,"SAC",null,null,null,"ボーマチック",null,null,null,"\tCore-Business"]
[null,null,null,null,null,null,null,null,null,null,null,null,null,null,null,null,null,null,null,null,null,null,null,null,null,null,null,null,null,null,null,null,null,null,"FC-KIF2EB50",null,null,null,null,null,null,null,null,null,null,null,null,null,null,"フルウッド",null,null,null,"SAC",null,null,null,"Core-Support"]
[null,null,null,null,null,null,null,null,null,null,null,null,null,null,null,null,null,null,null,null,null,null,null,null,null,null,null,null,null,null,null,null,null,null,"TAP5-VS1-30",null,null,null,null,null,null,null,null,null,null,null,null,null,null,"ストランゴ",null,null,null,"フルウッド",null,null,null,"ノーリツプレシジョン"]
[null,null,null,null,null,null,null,null,null,null,null,null,null,null,null,null,null,null,null,null,null,null,null,null,null,null,null,null,null,null,null,null,null,null,"TAK5-VS2-60",null,null,null,null,null,null,null,null,null,null,null,null,null,null,"ファームノート",null,null,null,"ストランゴ",null,null,null,"NSS"]
[null,null,null,null,null,null,null,null,null,null,null,null,null,null,null,null,null,null,null,null,null,null,null,null,null,null,null,null,null,null,null,null,null,null,"CF-130",null,null,null,null,null,null,null,null,null,null,null,null,null,null,"ミルクライトインタープラス",null,null,null,"ファームノート",null,null,null,"ガーミチューナー"]
[null,null,null,null,null,null,null,null,null,null,null,null,null,null,null,null,null,null,null,null,null,null,null,null,null,null,null,null,null,null,null,null,null,null,"CF-220",null,null,null,null,null,null,null,null,null,null,null,null,null,null,"NEDAP",null,null,null,"ミルクライトインターパルス",null,null,null,"大英システム"]
[null,null,null,null,null,null,null,null,null,null,null,null,null,null,null,null,null,null,null,null,null,null,null,null,null,null,null,null,null,null,null,null,null,null,"CF-230",null,null,null,null,null,null,null,null,null,null,null,null,null,null,null,null,null,null,"ネダップ",null,null,null,"\tCore-Business"]
[null,null,null,null,null,null,null,null,null,null,null,null,null,null,null,null,null,null,null,null,null,null,null,null,null,null,null,null,null,null,null,null,null,null,"CF-260",null,null,null,null,null,null,null,null,null,null,null,null,null,null,null,null,null,null,"ファーマーズサポート",null,null,null,"コアーサポート"]
[null,null,null,null,null,null,null,null,null,null,null,null,null,null,null,null,null,null,null,null,null,null,null,null,null,null,null,null,null,null,null,null,null,null,"CFK-260",null,null,null,null,null,null,null,null,null,null,null,null,null,null,null,null,null,null,"ファーマーズサポート"]